Workbook

Sheet VOLBY TISKU (hidden)
C23: Zpět MENU

Sheet PŘEHLED
C1: PŘEHLED SYSTÉMŮ
A4: VŠEOBECNÉ INFORMACE
B5: Výrobce | C5: ELKO EP, s.r.o., Holešov | D5: Crestron Electronics, Inc. | E5: Control4 | F5: ABB, Busch Jaeger | G5: Giersiepen GmbH & Co. KG | H5: ALBRECHT JUNG GMBH & CO. KG | I5: Loxone electronics, Kollerschlag, AU | J5: Trump Electronics S.A. | K5: ABB s.r.o., Elektro-Praga | L5: BPT Spa a Socio Unico | M5: Hager Electro s.r.o. (Hager Group) | N5: Legrand s.r.o. | O5: Legrand s.r.o. | P5: Niko NV | Q5: Merten GmbH | R5: Vimar | S5: LCN Polska Sp. Z o. o. Sp. K. | T5: MDT technologies GmbH | U5: Siemens AG | V5: HDL China | W5: Španělsko
B6: země původu | C6: CZ | D6: USA | E6: USA | F6: CH | G6: DE | H6: DE | I6: AU | J6: B | K6: CZ | L6: IT | M6: F | N6: F | O6: F | Q6: DE | R6: IT | S6: PL | T6: DE | U6: DE | V6: China | W6: Simon Maxlon
B7: web výrobce | C7: www.elkoep.cz | D7: www.crestron.com/ | E7: http://www.control4.com/ | F7: http://new.abb.com/cz | G7: www.gira.com | H7: www.jung.de/ | I7: http://www.loxone.com | J7: www.domintell.com | K7: www.enika.cz | L7: http://www.bpt.it/en/ita | M7: www.hager.cz | N7: www.bticino.com | O7: www.legrand.cz | P7: www.niko.be | Q7: www.merten.de | R7: www.vimar.eu | S7: www.LCN.pl | T7: http://www.mdt.de/EN_Start.html | U7: www.siemens.com | V7: http://www.hdlautomation.com/ | W7: http://www.simon.es/en/inicio
B8: web systému | C8: www.inels.cz | D8: http://crestron.mediacontrol.cz/ | E8: http://www.control4.com/ | F8: http://www.abb.cz/product/cz/9AAC111724.aspx | G8: http://www.gira.cz/index.asp?cat=prvky&page=news | H8: http://www.jung.de/en/623/products/technology/ | I8: http://www.loxone.com/cscz/produkty | J8: http://www.cmsys.cz/cze/automatizace-budov/system-domintell/ | K8: http://www117.abb.com/index.asp?thema=9745 | L8: http://www.bpt.it/en/ita/home.jsp?idrub=8 | M8: http://hager.cz/index.php?scr=1024&id=1129 | N8: http://www.legrand.cz/inteligentni-elektroinstalace?P=456&L=CZ | O8: http://www.legrand.cz/cz/scripts/cz/publigen/content/templates/previewColonneDroite.asp?P=360&L=CZ | P8: http://www.niko.eu/enus/niko/products/niko-home-control/ | Q8: http://www.merten.de | R8: www.vimar.eu | S8: http://www.lcn.pl/index.php?id=system&sub=oszczedny | T8: http://www.mdt.de/EN_Downloads.html | U8: https://www.cee.siemens.com/web/cz/cz/corporate/portal/home/produkty_a_sluzby/IBT/synco_living/Pages/uvod.aspx | V8: http://www.hdlautomation.com/product-category/010-bus-pro/ | W8: http://www.simon.es/en/product--the-complete-range-/domontica-inmotica/simon-maxlon
B9: zaměření systému | C9: domovní aplikace | D9: luxusní domovní aplikace | E9: domovní aplikace | F9: luxusní domovní aplikace | H9: rozsáhlé komerční aplikace | I9: domovní i komerční aplikace | J9: domovní aplikace | K9: domovní aplikace | L9: domovní instalace | M9: domovní aplikace | N9: komplexní domovní aplikace | O9: rekonstrukce starších instalací | P9: novostavby a rekonstrukce bytů a domů | Q9: rozsáhlé komerční aplikace | R9: lodní a domovní automatizece | S9: domovní a střední komerční aplikace | T9: domovní i komerční aplikace | U9: domovní i komerční aplikace | V9: residential, commercial, hospitality, marine | W9: residential and commercial applications
C10: střední komerční aplikace | D10: rozsáhlé komerční aplikace | E10: střední komerční aplikace | F10: rozsáhlé komerční aplikace | J10: střední komerční aplikace | P10: střední komerční aplikace
A11: ÚDAJE O SBĚRNICI
B12: Typ sběrnice | C12: CIB | D12: Cresnet | E12: RS485/LAN | F12: KNX / EIB | G12: EIB InstaBus | H12: EIB/KNX | I12: EIB/KNX | J12: RS485 | K12: KNX/EIB | L12: LONWorks | M12: KNX / EIB | N12: RS 485 | O12: typická instalace | P12: nikobus | Q12: KNX | R12: KNX - TPBUS | S12: PLC - Power line communication | T12: EIB/KNX | U12: EIB/KNX TP1, KNX RF | V12: BusPro | W12: LonWorks
B13: Topologie | C13: liniová, hvězdice, stromová | D13: liniová, hvězdice, stromová | E13: liniová | F13: liniová, hvězdice, stromová | G13: liniová | H13: liniová, hvězdice, stromová | I13: liniová, hvězdice, stromová | J13: volná | K13: liniová | L13: volná | M13: liniová | N13: volná | O13: dáno instalací | P13: liniová, hvězdice, stromová | Q13: liniová, hvězdice, stromová | R13: lineární, hvězda, jejich kombinace | S13: typická instalace | T13: liniová, hvězdice, stromová | U13: liniová, hvězdice, stromová | V13: line
B14: Počet vodičů sběrnice | C14: 2 | D14: 4 | G14: 2 | H14: 2 | I14: 2 | J14: 6 | K14: 4 | L14: 2 | M14: 2 | N14: 2 | O14: dáno instalací | P14: 2 vodiče | Q14: 2 | R14: 2 | S14: 2 | T14: 2 | U14: 2 | W14: -
B15: Napájení sběrnice | C15: 27V DC | D15: 24V DC | E15: 12V DC | F15: 30V | G15: 30V DC | H15: 30V DC | I15: 24V DC | J15: 12VDC | K15: 24V | L15: 20V DC | M15: 30V DC | N15: 27V DC | O15: 230V AC | P15: 9V DC | Q15: 30V DC | R15: 29V DC | S15: 230V AC | T15: 30V DC | U15: 29V DC | V15: 24V DC
B16: Typ systému | C16: centralizovaný | D16: centralizovaný | E16: centralizovaný | F16: decentralizovaný | G16: decentralizovaný | H16: decentralizovaný | I16: centralizovaný | J16: decentralizovaný | K16: centralizovaný | L16: centralizovaný | M16: decentralizovaný | N16: decentralizovaný | O16: decentralizovaný | P16: hybridní (částečně decentralizovaný) | Q16: decentralizovaný | R16: centralizovaný | S16: hybridní | T16: centralizovaný | U16: centralizovaný | V16: centralizovaný, decentralizovaný
B17: Délka sběrnice max. [m] | C17: 550 | D17: 1500 | E17: 300 | F17: 350 (700) | G17: 1000 | H17: 1000 | J17: 1600 | K17: 700 | L17: 1000 | M17: 1000 | N17: zhruba 250m | O17: dáno instalací | P17: 1000 | R17: 1000m | T17: 1000 | U17: 1000 | V17: 1200 | W17: -
B18: Počet linií max. | C18: 3 | F18: 15x12 | G18: 12 | H18: 15x15 | K18: 8 | L18: 10 | M18: 4 (1+3) | R18: 15 zón, každá s 16 liniemi | W18: -
B19: Počet jednotek na sběrnici max. | C19: 32 | F19: 64(252) | G19: 64 | H19: 64 | K19: 64 | L19: 40 (80) | M19: 64 | P19: 20 | R19: 128 | T19: 64 | U19: 64 | V19: 64 | W19: -
B20: Max. počet jednotek | C20: 576 | F20: 11520(46080) | G20: 57375 | H20: 14400 | K20: 512 | L20: 200 | M20: 256 | P20: 20x256 | R20: 30720 + EZS | T20: 256 | U20: 256 | V20: 512
B21: Způsob rozšíření sběrnice: | C21: 8x MI3 | H21: přidáním linie (přes oddělovač) | I21: Rozšiřující master moduly | O21: připojení ke klasické instalaci 230V AC | R21: za pomocí Linkového členu | T21: Rozšiřující master moduly | U21: Rozšiřující master moduly
A22: EXTERNÍ KOMUNIKACE
B23: Ethernet | C23: ano, centrální jednotka | D23: ano | E23: ano | F23: ano, telefonní modul TG/S 3.2 | G23: ano | H23: ano | I23: ano | J23: ano (DETH02) | K23: ano, v komunikačním modulu (3270-C16200) | L23: ano | M23: ano (jednotka TH009, TH010) | O23: ne | P23: ne | Q23: ano | R23: Testováno na náročné mořské podmínky provozu | S23: ne | T23: ano | V23: ano | W23: yes
B24: RS232/RS485 | C24: ano | D24: ano | E24: ano | G24: ano | H24: ne | I24: ne | J24: ano (DRS23201, DRS23202) | K24: ne | L24: RS 422 | M24: ne | O24: ne | P24: ne | Q24: ano | S24: ne | T24: ne | V24: ano | W24: yes
B25: IR | C25: ano | D25: ano | E25: ano | G25: ano | H25: ano | I25: ne | J25: ano eg. DDIR02 | K25: ne | M25: ne | N25: ano | O25: ne | P25: ano | Q25: ano | S25: ne | T25: ne | V25: ano | W25: yes
B26: USB | C26: ne | G26: ano | I26: ne | J26: ano (DUSB01) | K26: ne | M26: ano | O26: ne | P26: ne | Q26: ano | S26: ne | T26: ne | V26: ne | W26: yes
B27: GSM | C27: ano, GSM brána | D27: ano | E27: ano | F27: ano (3298-C77900) | G27: ne | H27: ano | J27: ano (DGSM01) | K27: ano (3270-C16500) | M27: ano | N27: ano, ovládání pouze 2 kontaktů | O27: ano | P27: ano (GSM-SMS modem) | Q27: ano | R27: ano (GSM-SMS modem) | S27: N/A | V27: ano
B28: webserver | C28: ano | D28: ano (jednotka CP2E) | E28: ano (jednotka CP2E) | G28: ano | H28: ne | I28: ano | J28: ano (DETH03) | K28: ano, v komunikačním modulu (3270-C16200) | M28: ano, modul internet brány | N28: ano | O28: Omizzy web server | P28: ne | Q28: ano (jednotka IC1) | S28: N/A | T28: ano | W28: yes
A29: JEDNOTKY
B30: Spínací | C30: 3x modul | F30: 20x modul | G30: 7x modul | H30: 11x modul | I30: 8x modul | J30: 2x modul | K30: 4x modul | M30: 9x modul | N30: 5x modul | O30: 1x modul | P30: 2x modul | Q30: 15x modul | R30: 5x modul | S30: 3x modul | V30: 12x modul
C31: 2x box | G31: 2x box | H31: 3x box | K31: 1x box | N31: 3x box | O31: 4x box | Q31: 4x box | S31: 2x box | V31: 2x box
B32: Stmívací | C32: stmívání R, L, C, LED, ESL zátěží | F32: stmívání R, L, C zátěží | G32: stmívání R, L, C zátěží | H32: stmívání R, L, C zátěží + LED | I32: stmívání R, L, C zátěží | K32: žárovky, halogeny | N32: stmívání R, L, C zátěží + LED | O32: stmívání R, L, C zátěží | P32: stmívání R, L, C zátěží | Q32: stmívání R, L, C zátěží | S32: stmívání R, L, C zátěží | V32: stmívání R, L, C, LED, CFL
C33: 4x Modul + 1 rozšiřující | F33: 10x modul | G33: 7x modul | I33: 4x modul | J33: 4x modul | K33: 1x modul | M33: 4x modul | N33: 5x modul | O33: 2x modul | P33: 5x modul | Q33: 9x modul | R33: 3x modul | S33: 3x modul | V33: 13x modul
C34: 1x box | G34: 1x box | O34: 2x box | Q34: 1x box | V34: 2x box
B35: Převodní | C35: 2x modul | F35: 7x modul | G35: 3x modul | H35: 1x modul | J35: 2x modul | K35: 1x modul | N35: 1x modul | P35: 3x modul | V35: 6x modul
C36: 1x box | S36: 1x box
B37: Žaluziové | C37: 2x box | F37: 10x modul | G37: 9x modul | H37: 5x modul | J37: 1x modul | K37: 1x modul | M37: 4x modul | P37: 1x modul | Q37: 10x modul | R37: 1x modul | S37: 1x modul | V37: 1x modul
G38: 2x box | H38: 1x box | O38: 2x box | V38: 1x box
B39: Dotykový panel | C39: ano | D39: ano | E39: ano | F39: ano | G39: ano | H39: ano | I39: ne, externě | J39: ano | K39: ne | N39: ano | O39: ano | P39: ano | Q39: ano | R39: ano, typ 20511 | S39: ano | V39: ano
A40: NASTAVENÍ / PROGRAMOVÁNÍ
B41: Způsob nastavení (parametrizace): | C41: pouze SW | D41: N/A | F41: pouze SW | I41: SW | J41: SW | K41: tlačítkem i SW | M41: TX100 (bezdrátový přístroj) | O41: tlačítkem | P41: tlačítkem i SW | Q41: SW | R41: SW | S41: SW nebo LCN-P-PRO | V41: SW
B42: Software | C42: IDM3 | D42: D3 Pro software | F42: ETS 1.2 | G42: ETS 3.03d | J42: ano | K42: Ego-n asistent | P42: NIKOBUS v. 3.1 | Q42: ETS 3.0 professional | R42: EasyTool 4.2 | V42: SB-PW-Back
B43: Cena SW: | C43: zdarma | F43: 33000 | I43: zdarma | J43: zdarma | K43: Zdarma v partnerské sekci webu | P43: zdarma | Q43: zdarma
B44: Vizualizace | C44: iMM | D44: Room view | G44: Gira HomeServer | H44: ELVIS | V44: GMS
B45: Jiný software | C45: iMM | D45: e-Control SDKs | G45: EIB-Tool Software, InterVisu 2.0 | R45: EasyTool Professional LT | V45: MSSHOW.V1.0
A46: SILNÉ/SLABÉ STRÁNKY
B47: Silné stránky: | C47: update FW přes sběrnici | D47: propracovanost a design ovládání | F47: velký výběr jednotek na sběrnici | J47: Plug-in konektory modulů | K47: SD karta (záloha) | M47: možnosti propojení s Tebis RF (bezdrátová k.) | N47: jednotky pro osazení na stůl | O47: jednoduché připojení na stávající instalaci | P47: napájení integrováno v každé jednotce | Q47: možnost ovládání modulů ručně - tlačítky | S47: Každá jednotka má své napájení | V47: široká nabídka dotykových displejů
D48: široká nabídka dotykových displejů | K48: možnost konfigurace přes SW i ručně | M48: záloha nastavení systému na USB (TX100) | N48: kamerové jednotky na sběrnici - vestavné | O48: programování tlačítkem | P48: integrace RF ovládání | V48: integrace RF control
N49: možnost propojení se standardní sběrnicí EIB (modul F426) | O49: cenová dostupnost
B50: Slabé stránky: | D50: vysoká cena | F50: složitost nastavování - programování jednotek | I50: absence modulů typu BOX | J50: absence modulů typu BOX | K50: možnost IR ovládání | O50: omezení na jednoduché časové fce a scénáře | P50: absence modulů typu BOX
O51: montáž na klasickou silovou instalaci - možnost rušení
A52: PODPORA
B53: Způsob prodeje: | C53: přes SP | D53: přes SP | E53: přes SP | F53: přes SP | G53: přes SP | J53: přes SP | K53: přes SP | M53: přes obchodní zástupce (???) | N53: přes SP | O53: přes SP | P53: přes SP | V53: through certified partners
B54: Navázaný design vypínačů: | C54: Elegant (plast) | D54: CNX-B | E54: CNX-B | F54: Future linear | G54: Standard 55 | H54: Jung FD Design (plast, hliník, sklo) | J54: Bticino | K54: Element | N54: axolute | O54: Galea Life (plast, kov, dřevo, kůže) | P54: Original, Intense, Pure | Q54: atelier-M | R54: EIKON | V54: own types of design
C55: Logus90 (plast, hliník, sklo, dřevo) | D55: Cameo | E55: Cameo | F55: Solo, Solo carat | G55: E22 | K55: Time, Time Arbo | N55: living | Q55: antik | R55: IDEN
D56: C2N-DB | E56: C2N-DB | F56: Alpha exclusive | G56: F-line F100 | N56: light | Q56: octocolor | R56: PLANA
F57: Impuls | G57: E2 | N57: light tech | Q57: aquadesign
G58: Event | N58: matix | Q58: aquastar
G59: Esprit
G60: TX44
AE135: Aktualizace 1.10.2011 | AN135: Aktualizace 1.10.2011 | AW135: Aktualizace 1.10.2011
X136: =C1 -> PŘEHLED SYSTÉMŮ | AG136: =C1 -> PŘEHLED SYSTÉMŮ | AP136: =C1 -> PŘEHLED SYSTÉMŮ | AS136: CFox
X137: VŠEOBECNÉ INFORMACE | AG137: VŠEOBECNÉ INFORMACE | AP137: VŠEOBECNÉ INFORMACE
Y138: Výrobce | Z138: =C5 -> ELKO EP, s.r.o., Holešov | AA138: =F5 -> ABB, Busch Jaeger | AB138: =K5 -> ABB s.r.o., Elektro-Praga | AC138: =#REF! ->  | AD138: =M5 -> Hager Electro s.r.o. (Hager Group) | AE138: =N5 -> Legrand s.r.o. | AH138: Výrobce | AI138: =O5 -> Legrand s.r.o. | AJ138: =P5 -> Niko NV | AK138: =#REF! ->  | AL138: =#REF! ->  | AM138: =J5 -> Trump Electronics S.A. | AN138: =Q5 -> Merten GmbH | AQ138: Výrobce | AR138: =R5 -> Vimar | AS138: =#REF! ->  | AT138: =#REF! ->  | AU138: =#REF! ->  | AV138: =S5 -> LCN Polska Sp. Z o. o. Sp. K. | AW138: =#REF! -> 
Y139: web výrobce | Z139: =C7 -> www.elkoep.cz | AA139: =F7 -> http://new.abb.com/cz | AB139: =K7 -> www.enika.cz | AC139: =#REF! ->  | AD139: =M7 -> www.hager.cz | AE139: =N7 -> www.bticino.com | AH139: web výrobce | AI139: =O7 -> www.legrand.cz | AJ139: =P7 -> www.niko.be | AK139: =#REF! ->  | AL139: =#REF! ->  | AM139: =J7 -> www.domintell.com | AN139: =Q7 -> www.merten.de | AQ139: web výrobce | AR139: =R7 -> www.vimar.eu | AS139: =#REF! ->  | AT139: =#REF! ->  | AU139: =#REF! ->  | AV139: =S7 -> www.LCN.pl | AW139: =#REF! -> 
Y140: web systému | Z140: www.inels.cz | AA140: http://www.abb.cz/product/cz/9AAC111724.aspx | AB140: http://www117.abb.com/index.asp?thema=9745 | AC140: =#REF! ->  | AD140: http://hager.cz/index.php?scr=1024&id=1129 | AE140: http://www.legrand.cz/inteligentni-elektroinstalace?P=456&L=CZ | AH140: web systému | AI140: http://www.legrand.cz/cz/scripts/cz/publigen/content/templates/previewColonneDroite.asp?P=360&L=CZ | AJ140: http://www.niko.eu/enus/niko/products/niko-home-control/ | AK140: =#REF! ->  | AL140: =#REF! ->  | AM140: http://www.cmsys.cz/cze/automatizace-budov/system-domintell/ | AN140: http://www.merten.de | AQ140: web systému | AR140: www.vimar.eu | AS140: =#REF! ->  | AT140: =#REF! ->  | AU140: =#REF! ->  | AV140: http://www.lcn.pl/index.php?id=system&sub=oszczedny | AW140: =#REF! -> 
Y141: zaměření systému | Z141: domovní aplikace | AA141: luxusní domovní aplikace | AB141: domovní aplikace | AC141: =#REF! ->  | AD141: domovní aplikace | AE141: komplexní domovní aplikace | AH141: zaměření systému | AI141: rekonstrukce starších instalací | AJ141: novostavby a rekonstrukce bytů a domů | AK141: =#REF! ->  | AL141: =#REF! ->  | AM141: domovní aplikace | AN141: rozsáhlé komerční aplikace | AQ141: zaměření systému | AR141: lodní a domovní automatizece | AS141: =#REF! ->  | AT141: =#REF! ->  | AU141: =#REF! ->  | AV141: domovní a střední komerční aplikace | AW141: =#REF! -> 
Z142: střední komerční aplikace | AA142: rozsáhlé komerční aplikace | AC142: =#REF! ->  | AJ142: střední komerční aplikace | AK142: =#REF! ->  | AL142: =#REF! ->  | AM142: střední komerční aplikace | AS142: =#REF! ->  | AT142: =#REF! ->  | AU142: =#REF! ->  | AW142: =#REF! -> 
X143: ÚDAJE O SBĚRNICI | AC143: =#REF! ->  | AG143: ÚDAJE O SBĚRNICI | AK143: =#REF! ->  | AL143: =#REF! ->  | AP143: ÚDAJE O SBĚRNICI | AS143: =#REF! ->  | AT143: =#REF! ->  | AU143: =#REF! ->  | AW143: =#REF! -> 
Y144: Typ sběrnice | Z144: CIB | AA144: KNX / EIB | AB144: KNX/EIB | AC144: =#REF! ->  | AD144: KNX / EIB | AE144: RS 485 | AH144: Typ sběrnice | AI144: typická instalace | AJ144: nikobus | AK144: =#REF! ->  | AL144: =#REF! ->  | AM144: RS485 | AN144: KNX | AQ144: Typ sběrnice | AR144: KNX - TPBUS | AS144: =#REF! ->  | AT144: =#REF! ->  | AU144: =#REF! ->  | AV144: PLC - Power line communication | AW144: =#REF! -> 
Y145: Topologie | Z145: liniová, hvězdice, stromová | AA145: liniová, hvězdice, stromová | AB145: liniová | AC145: =#REF! ->  | AD145: liniová | AE145: volná | AH145: Topologie | AI145: dáno instalací | AJ145: liniová, hvězdice, stromová | AK145: =#REF! ->  | AL145: =#REF! ->  | AM145: volná | AN145: liniová, hvězdice, stromová | AQ145: Topologie | AR145: lineární, hvězda, jejich kombinace | AS145: =#REF! ->  | AT145: =#REF! ->  | AU145: =#REF! ->  | AV145: typická instalace | AW145: =#REF! -> 
Y146: Počet vodičů sběrnice | Z146: 2 | AB146: 4 | AC146: =#REF! ->  | AD146: 2 | AE146: 2 | AH146: Počet vodičů sběrnice | AI146: dáno instalací | AJ146: 2 vodiče | AK146: =#REF! ->  | AL146: =#REF! ->  | AM146: 6 | AN146: 2 | AQ146: Počet vodičů sběrnice | AR146: 2 | AS146: =#REF! ->  | AT146: =#REF! ->  | AU146: =#REF! ->  | AV146: 2 | AW146: =#REF! -> 
Y147: Napájení sběrnice | Z147: 27V DC | AA147: 30V | AB147: 24V | AC147: =#REF! ->  | AD147: 30V DC | AE147: 27V DC | AH147: Napájení sběrnice | AI147: 230V AC | AJ147: 9V DC | AK147: =#REF! ->  | AL147: =#REF! ->  | AM147: 12VDC | AN147: 30V DC | AQ147: Napájení sběrnice | AR147: 29V DC | AS147: =#REF! ->  | AT147: =#REF! ->  | AU147: =#REF! ->  | AV147: 230V AC | AW147: =#REF! -> 
Y148: Typ systému | Z148: centralizovaný | AA148: decentralizovaný | AB148: centralizovaný | AC148: =#REF! ->  | AD148: decentralizovaný | AE148: decentralizovaný | AH148: Typ systému | AI148: decentralizovaný | AJ148: hybridní (částečně decentralizovaný) | AK148: =#REF! ->  | AL148: =#REF! ->  | AM148: decentralizovaný | AN148: decentralizovaný | AQ148: Typ systému | AR148: centralizovaný | AS148: =#REF! ->  | AT148: =#REF! ->  | AU148: =#REF! ->  | AV148: hybridní | AW148: =#REF! -> 
Y149: Délka sběrnice max. [m] | Z149: 550 | AA149: 350 (700) | AB149: 700 | AC149: =#REF! ->  | AD149: 1000 | AE149: zhruba 250m | AH149: Délka sběrnice max. [m] | AI149: dáno instalací | AJ149: 1000 | AK149: =#REF! ->  | AL149: =#REF! ->  | AM149: 1600 | AQ149: Délka sběrnice max. [m] | AR149: 1000m | AS149: =#REF! ->  | AT149: =#REF! ->  | AU149: =#REF! ->  | AW149: =#REF! -> 
Y150: Počet linií max. | Z150: 3 | AA150: 15x12 | AB150: 8 | AC150: =#REF! ->  | AD150: 4 (1+3) | AH150: Počet linií max. | AK150: =#REF! ->  | AL150: =#REF! ->  | AQ150: Počet linií max. | AR150: 15 zón, každá s 16 liniemi | AS150: =#REF! ->  | AT150: =#REF! ->  | AU150: =#REF! ->  | AW150: =#REF! -> 
Y151: Počet jednotek na sběrnici max. | Z151: 32 | AA151: 64(252) | AB151: 64 | AC151: =#REF! ->  | AD151: 64 | AH151: Počet jednotek na sběrnici max. | AJ151: 20 | AK151: =#REF! ->  | AL151: =#REF! ->  | AQ151: Počet jednotek na sběrnici max. | AR151: 128 | AS151: =#REF! ->  | AT151: =#REF! ->  | AU151: =#REF! ->  | AW151: =#REF! -> 
Y152: Max. počet jednotek | Z152: 576 | AA152: 11520(46080) | AB152: 512 | AC152: =#REF! ->  | AD152: 256 | AH152: Max. počet jednotek | AJ152: 20x256 | AK152: =#REF! ->  | AL152: =#REF! ->  | AQ152: Max. počet jednotek | AR152: 30720 + EZS | AS152: =#REF! ->  | AT152: =#REF! ->  | AU152: =#REF! ->  | AW152: =#REF! -> 
Y153: Způsob rozšíření sběrnice: | Z153: 8x MI3 | AC153: =#REF! ->  | AH153: Způsob rozšíření sběrnice: | AI153: připojení ke klasické instalaci 230V AC | AK153: =#REF! ->  | AL153: =#REF! ->  | AQ153: Způsob rozšíření sběrnice: | AR153: za pomocí Linkového členu | AS153: =#REF! ->  | AT153: =#REF! ->  | AU153: =#REF! ->  | AW153: =#REF! -> 
X154: EXTERNÍ KOMUNIKACE | AC154: =#REF! ->  | AG154: EXTERNÍ KOMUNIKACE | AK154: =#REF! ->  | AL154: =#REF! ->  | AP154: EXTERNÍ KOMUNIKACE | AS154: =#REF! ->  | AT154: =#REF! ->  | AU154: =#REF! ->  | AW154: =#REF! -> 
Y155: Ethernet | Z155: ano, centrální jednotka | AA155: ano, telefonní modul TG/S 3.2 | AB155: ano, v komunikačním modulu (3270-C16200) | AC155: =#REF! ->  | AD155: ano (jednotka TH009, TH010) | AH155: Ethernet | AI155: ne | AJ155: ne | AK155: =#REF! ->  | AL155: =#REF! ->  | AM155: ano (DETH02) | AN155: ano | AQ155: Ethernet | AR155: Testováno na náročné mořské podmínky provozu | AS155: =#REF! ->  | AT155: =#REF! ->  | AU155: =#REF! ->  | AV155: ne | AW155: =#REF! -> 
Y156: RS232/RS485 | Z156: ano | AB156: ne | AC156: =#REF! ->  | AD156: ne | AH156: RS232/RS485 | AI156: ne | AJ156: ne | AK156: =#REF! ->  | AL156: =#REF! ->  | AM156: ano (DRS23201, DRS23202) | AN156: ano | AQ156: RS232/RS485 | AS156: =#REF! ->  | AT156: =#REF! ->  | AU156: =#REF! ->  | AV156: ne | AW156: =#REF! -> 
Y157: IR | Z157: ano | AB157: ne | AC157: =#REF! ->  | AD157: ne | AE157: ano | AH157: IR | AI157: ne | AJ157: ano | AK157: =#REF! ->  | AL157: =#REF! ->  | AM157: ano eg. DDIR02 | AN157: ano | AQ157: IR | AS157: =#REF! ->  | AT157: =#REF! ->  | AU157: =#REF! ->  | AV157: ne | AW157: =#REF! -> 
Y158: USB | Z158: ne | AB158: ne | AC158: =#REF! ->  | AD158: ano | AE158: 0 | AH158: USB | AI158: ne | AJ158: ne | AK158: =#REF! ->  | AL158: =#REF! ->  | AM158: ano (DUSB01) | AN158: ano | AQ158: USB | AS158: =#REF! ->  | AT158: =#REF! ->  | AU158: =#REF! ->  | AV158: ne | AW158: =#REF! -> 
Y159: GSM | Z159: ano, GSM brána | AA159: ano (3298-C77900) | AB159: ano (3270-C16500) | AC159: =#REF! ->  | AD159: ano | AE159: ano, ovládání pouze 2 kontaktů | AH159: GSM | AI159: ano | AJ159: ano (GSM-SMS modem) | AK159: =#REF! ->  | AL159: =#REF! ->  | AM159: ano (DGSM01) | AN159: ano | AQ159: GSM | AR159: ano (GSM-SMS modem) | AS159: =#REF! ->  | AT159: =#REF! ->  | AU159: =#REF! ->  | AV159: N/A | AW159: =#REF! -> 
Y160: webserver | Z160: ano | AB160: ano, v komunikačním modulu (3270-C16200) | AC160: =#REF! ->  | AD160: ano, modul internet brány | AE160: ano | AH160: webserver | AI160: Omizzy web server | AJ160: ne | AK160: =#REF! ->  | AL160: =#REF! ->  | AM160: ano (DETH03) | AN160: ano (jednotka IC1) | AQ160: webserver | AS160: =#REF! ->  | AT160: =#REF! ->  | AU160: =#REF! ->  | AV160: N/A | AW160: =#REF! -> 
X161: JEDNOTKY | AC161: =#REF! ->  | AG161: JEDNOTKY | AK161: =#REF! ->  | AL161: =#REF! ->  | AP161: JEDNOTKY | AS161: =#REF! ->  | AT161: =#REF! ->  | AU161: =#REF! ->  | AW161: =#REF! -> 
Y162: SPÍNACÍ | Z162: 3x modul | AA162: 20x modul | AB162: 4x modul | AC162: =#REF! ->  | AD162: 9x modul | AE162: 5x modul | AH162: SPÍNACÍ | AI162: 1x modul | AJ162: 2x modul | AK162: =#REF! ->  | AL162: =#REF! ->  | AM162: 2x modul | AN162: 15x modul | AQ162: SPÍNACÍ | AR162: 5x modul | AS162: =#REF! ->  | AT162: =#REF! ->  | AU162: =#REF! ->  | AV162: 3x modul | AW162: =#REF! -> 
Z163: 2x box | AA163: 0 | AB163: 1x box | AC163: =#REF! ->  | AE163: 3x box | AI163: 4x box | AK163: =#REF! ->  | AL163: =#REF! ->  | AN163: 4x box | AS163: =#REF! ->  | AT163: =#REF! ->  | AU163: =#REF! ->  | AV163: 2x box | AW163: =#REF! -> 
Y164: STMÍVACÍ | Z164: stmívání R, L, C, LED, ESL zátěží | AA164: stmívání R, L, C zátěží | AB164: žárovky, halogeny | AC164: =#REF! ->  | AE164: stmívání R, L, C zátěží + LED | AH164: STMÍVACÍ | AI164: stmívání R, L, C zátěží | AJ164: stmívání R, L, C zátěží | AK164: =#REF! ->  | AL164: =#REF! ->  | AN164: stmívání R, L, C zátěží | AQ164: STMÍVACÍ | AS164: =#REF! ->  | AT164: =#REF! ->  | AU164: =#REF! ->  | AV164: stmívání R, L, C zátěží | AW164: =#REF! -> 
Z165: 4x Modul + 1 rozšiřující | AA165: 10x modul | AB165: 1x modul | AC165: =#REF! ->  | AD165: 4x modul | AE165: 5x modul | AI165: 2x modul | AJ165: 5x modul | AK165: =#REF! ->  | AL165: =#REF! ->  | AM165: 4x modul | AN165: 9x modul | AR165: 3x modul | AS165: =#REF! ->  | AT165: =#REF! ->  | AU165: =#REF! ->  | AV165: 3x modul | AW165: =#REF! -> 
Z166: 1x box | AC166: =#REF! ->  | AI166: 2x box | AK166: =#REF! ->  | AL166: =#REF! ->  | AN166: 1x box | AS166: =#REF! ->  | AT166: =#REF! ->  | AU166: =#REF! ->  | AW166: =#REF! -> 
Y167: PŘEVODNÍ | Z167: 2x modul | AA167: 7x modul | AB167: 1x modul | AC167: =#REF! ->  | AE167: 1x modul | AH167: PŘEVODNÍ | AJ167: 3x modul | AK167: =#REF! ->  | AL167: =#REF! ->  | AM167: 2x modul | AQ167: PŘEVODNÍ | AS167: =#REF! ->  | AT167: =#REF! ->  | AU167: =#REF! ->  | AW167: =#REF! -> 
Z168: 1x box | AC168: =#REF! ->  | AK168: =#REF! ->  | AL168: =#REF! ->  | AS168: =#REF! ->  | AT168: =#REF! ->  | AU168: =#REF! ->  | AV168: 1x box | AW168: =#REF! -> 
Y169: ŽALUZIOVÉ | Z169: =#REF! ->  | AA169: 10x modul | AB169: 1x modul | AC169: =#REF! ->  | AD169: 4x modul | AH169: ŽALUZIOVÉ | AJ169: 1x modul | AK169: =#REF! ->  | AL169: =#REF! ->  | AM169: 1x modul | AN169: 10x modul | AQ169: ŽALUZIOVÉ | AR169: 1x modul | AS169: =#REF! ->  | AT169: =#REF! ->  | AU169: =#REF! ->  | AV169: 1x modul | AW169: =#REF! -> 
Z170: =C37 -> 2x box | AC170: =#REF! ->  | AI170: 2x box | AK170: =#REF! ->  | AL170: =#REF! ->  | AN170: =Q38 ->  | AR170: =R38 ->  | AS170: =#REF! ->  | AT170: =#REF! ->  | AU170: =#REF! ->  | AV170: =S38 ->  | AW170: =#REF! -> 
Y171: TOUCH PANEL | Z171: =C39 -> ano | AA171: =F39 -> ano | AB171: =K39 -> ne | AC171: =#REF! ->  | AE171: ano | AH171: TOUCH PANEL | AI171: =O39 -> ano | AJ171: =P39 -> ano | AK171: =#REF! ->  | AL171: =#REF! ->  | AM171: =J39 -> ano | AN171: ano | AQ171: TOUCH PANEL | AR171: ano, typ 20511 | AS171: =#REF! ->  | AT171: =#REF! ->  | AU171: =#REF! ->  | AV171: ano | AW171: =#REF! -> 
X172: NASTAVENÍ / PROGRAMOVÁNÍ | AC172: =#REF! ->  | AG172: NASTAVENÍ / PROGRAMOVÁNÍ | AK172: =#REF! ->  | AL172: =#REF! ->  | AP172: NASTAVENÍ / PROGRAMOVÁNÍ | AS172: =#REF! ->  | AT172: =#REF! ->  | AU172: =#REF! ->  | AW172: =#REF! -> 
Y173: Způsob nastavení (parametrizace): | Z173: pouze SW | AA173: pouze SW | AB173: tlačítkem i SW | AC173: =#REF! ->  | AD173: TX100 (bezdrátový přístroj) | AH173: Způsob nastavení (parametrizace): | AI173: tlačítkem | AJ173: tlačítkem i SW | AK173: =#REF! ->  | AL173: =#REF! ->  | AM173: SW | AN173: SW | AQ173: Způsob nastavení (parametrizace): | AR173: SW | AS173: =#REF! ->  | AT173: =#REF! ->  | AU173: =#REF! ->  | AV173: SW nebo LCN-P-PRO | AW173: =#REF! -> 
Y174: Software | Z174: IDM3 | AA174: ETS 1.2 | AB174: Ego-n asistent | AC174: =#REF! ->  | AH174: Software | AJ174: NIKOBUS v. 3.1 | AK174: =#REF! ->  | AL174: =#REF! ->  | AM174: ano | AN174: ETS 3.0 professional | AQ174: Software | AR174: EasyTool 4.2 | AS174: =#REF! ->  | AT174: =#REF! ->  | AU174: =#REF! ->  | AW174: =#REF! -> 
Y175: Cena SW: | Z175: zdarma | AA175: 33000 | AB175: Zdarma v partnerské sekci webu | AC175: =#REF! ->  | AH175: Cena SW: | AJ175: zdarma | AK175: =#REF! ->  | AL175: =#REF! ->  | AM175: zdarma | AN175: zdarma | AQ175: Cena SW: | AS175: =#REF! ->  | AT175: =#REF! ->  | AU175: =#REF! ->  | AW175: =#REF! -> 
Y176: Vizualizace | Z176: iMM | AC176: =#REF! ->  | AH176: Vizualizace | AK176: =#REF! ->  | AL176: =#REF! ->  | AQ176: Vizualizace | AS176: =#REF! ->  | AT176: =#REF! ->  | AU176: =#REF! ->  | AW176: =#REF! -> 
Y177: Jiný software | Z177: iMM | AC177: =#REF! ->  | AH177: Jiný software | AK177: =#REF! ->  | AL177: =#REF! ->  | AQ177: Jiný software | AR177: EasyTool Professional LT | AS177: =#REF! ->  | AT177: =#REF! ->  | AU177: =#REF! ->  | AW177: =#REF! -> 
X178: SILNÉ/SLABÉ STRÁNKY | AC178: =#REF! ->  | AG178: SILNÉ/SLABÉ STRÁNKY | AK178: =#REF! ->  | AL178: =#REF! ->  | AP178: SILNÉ/SLABÉ STRÁNKY | AS178: =#REF! ->  | AT178: =#REF! ->  | AU178: =#REF! ->  | AW178: =#REF! -> 
Y179: Silné stránky: | Z179: update FW přes sběrnici | AA179: velký výběr jednotek na sběrnici | AB179: SD karta (záloha) | AC179: =#REF! ->  | AD179: možnosti propojení s Tebis RF (bezdrátová k.) | AE179: jednotky pro osazení na stůl | AH179: Silné stránky: | AI179: jednoduché připojení na stávající instalaci | AJ179: napájení integrováno v každé jednotce | AK179: =#REF! ->  | AL179: =#REF! ->  | AM179: Plug-in konektory modulů | AN179: možnost ovládání modulů ručně - tlačítky | AQ179: Silné stránky: | AS179: =#REF! ->  | AT179: =#REF! ->  | AU179: =#REF! ->  | AV179: Každá jednotka má své napájení | AW179: =#REF! -> 
AB180: možnost konfigurace přes SW i ručně | AC180: =#REF! ->  | AD180: =M48 -> záloha nastavení systému na USB (TX100) | AE180: =N48 -> kamerové jednotky na sběrnici - vestavné | AI180: programování tlačítkem | AJ180: integrace RF ovládání | AK180: =#REF! ->  | AL180: =#REF! ->  | AS180: =#REF! ->  | AT180: =#REF! ->  | AU180: =#REF! ->  | AW180: =#REF! -> 
AC181: =#REF! ->  | AE181: možnost propojení se standardní sběrnicí EIB (modul F426) | AI181: cenová dostupnost | AK181: =#REF! ->  | AL181: =#REF! ->  | AS181: =#REF! ->  | AT181: =#REF! ->  | AU181: =#REF! ->  | AW181: =#REF! -> 
Y182: Slabé stránky: | AA182: složitost nastavování - programování jednotek | AB182: možnost IR ovládání | AC182: =#REF! ->  | AH182: Slabé stránky: | AI182: omezení na jednoduché časové fce a scénáře | AJ182: absence modulů typu BOX | AK182: =#REF! ->  | AL182: =#REF! ->  | AM182: absence modulů typu BOX | AQ182: Slabé stránky: | AS182: =#REF! ->  | AT182: =#REF! ->  | AU182: =#REF! ->  | AW182: =#REF! -> 
AC183: =#REF! ->  | AI183: montáž na klasickou silovou instalaci - možnost rušení | AK183: =#REF! ->  | AL183: =#REF! ->  | AS183: =#REF! ->  | AT183: =#REF! ->  | AU183: =#REF! ->  | AW183: =#REF! -> 
X184: PODPORA | AC184: =#REF! ->  | AG184: PODPORA | AK184: =#REF! ->  | AL184: =#REF! ->  | AP184: PODPORA | AS184: =#REF! ->  | AT184: =#REF! ->  | AU184: =#REF! ->  | AW184: =#REF! -> 
Y185: Způsob prodeje: | Z185: přes SP | AA185: přes SP | AB185: přes SP | AC185: =#REF! ->  | AD185: přes obchodní zástupce (???) | AE185: přes SP | AH185: Způsob prodeje: | AI185: přes SP | AJ185: přes SP | AK185: =#REF! ->  | AL185: =#REF! ->  | AM185: přes SP | AQ185: Způsob prodeje: | AS185: =#REF! ->  | AT185: =#REF! ->  | AU185: =#REF! ->  | AW185: =#REF! -> 
Y186: Navázaný design vypínačů: | Z186: Elegant (plast) | AA186: Future linear | AB186: Element | AC186: =#REF! ->  | AE186: axolute | AH186: Navázaný design vypínačů: | AI186: Galea Life (plast, kov, dřevo, kůže) | AJ186: Original, Intense, Pure | AK186: =#REF! ->  | AL186: =#REF! ->  | AM186: Bticino | AN186: atelier-M | AQ186: Navázaný design vypínačů: | AR186: EIKON | AS186: =#REF! ->  | AT186: =#REF! ->  | AU186: =#REF! ->  | AW186: =#REF! -> 
Z187: Logus90 (plast, hliník, sklo, dřevo) | AA187: Solo, Solo carat | AB187: Time, Time Arbo | AC187: =#REF! ->  | AE187: living | AJ187: 0 | AK187: =#REF! ->  | AL187: =#REF! ->  | AN187: antik | AR187: IDEN | AS187: =#REF! ->  | AT187: =#REF! ->  | AU187: =#REF! ->  | AW187: =#REF! -> 
AA188: Alpha exclusive | AC188: =#REF! ->  | AE188: light | AJ188: 0 | AK188: =#REF! ->  | AL188: =#REF! ->  | AN188: octocolor | AR188: PLANA | AS188: =#REF! ->  | AT188: =#REF! ->  | AU188: =#REF! ->  | AW188: =#REF! -> 
AA189: Impuls | AC189: =#REF! ->  | AE189: light tech | AJ189: 0 | AK189: =#REF! ->  | AL189: =#REF! ->  | AN189: aquadesign | AS189: =#REF! ->  | AT189: =#REF! ->  | AU189: =#REF! ->  | AW189: =#REF! -> 
AC190: =#REF! ->  | AE190: matix | AK190: =#REF! ->  | AL190: =#REF! ->  | AN190: aquastar | AS190: =#REF! ->  | AT190: =#REF! ->  | AU190: =#REF! ->  | AW190: =#REF! -> 
AC191: =#REF! ->  | AK191: =#REF! ->  | AL191: =#REF! ->  | AS191: =#REF! ->  | AT191: =#REF! ->  | AU191: =#REF! ->  | AW191: =#REF! -> 
AC192: =#REF! ->  | AK192: =#REF! ->  | AL192: =#REF! ->  | AS192: =#REF! ->  | AT192: =#REF! ->  | AU192: =#REF! ->  | AW192: =#REF! -> 

Sheet INSTALACE
B1: CENOVÉ SROVNÁNÍ
A4: AKTORY A SENZORY | B4: Zařízení | C4: cena / ks | D4: ks | E4: Cena | F4: Zařízení | G4: cena / ks | H4: ks | I4: Cena | J4: Zařízení | K4: cena / ks | L4: ks | M4: Cena | N4: Zařízení | O4: cena / ks | P4: ks | Q4: Cena | R4: Zařízení | S4: cena / ks | T4: ks | U4: Cena | V4: Zařízení | W4: cena / ks | X4: ks | Y4: Cena | Z4: Zařízení | AA4: cena / ks | AB4: ks | AC4: Cena | AD4: Zařízení | AE4: cena / ks | AF4: ks | AG4: Cena | AH4: Zařízení | AI4: cena / ks | AJ4: ks | AK4: Cena | AL4: Zařízení | AM4: cena / ks | AN4: ks | AO4: Cena | AP4: Zařízení | AQ4: cena / ks | AR4: ks | AS4: Cena | AT4: Zařízení | AU4: cena / ks | AV4: ks | AW4: Cena | AX4: Zařízení | AY4: cena / ks | AZ4: ks | BA4: Cena | BB4: Zařízení | BC4: cena / ks | BD4: ks | BE4: Cena | BF4: Zařízení | BG4: cena / ks | BH4: ks | BI4: Cena | BJ4: Zařízení | BK4: cena / ks | BL4: ks | BM4: Cena | BN4: Zařízení | BO4: cena / ks | BP4: ks | BQ4: Cena | BR4: Zařízení | BS4: cena / ks | BT4: ks | BU4: Cena | BV4: Zařízení | BW4: cena / ks | BX4: ks | BY4: Cena | BZ4: Zařízení | CA4: cena / ks | CB4: ks | CC4: Cena | CD4: Zařízení | CE4: cena / ks | CF4: ks | CG4: Cena | CH4: Zařízení | CI4: cena / ks | CJ4: ks | CK4: Cena | CL4: Zařízení | CM4: cena / ks | CN4: ks | CO4: Cena | CP4: Zařízení | CQ4: cena / ks | CR4: ks | CS4: Cena | CT4: Zařízení | CU4: cena / ks | CV4: ks | CW4: Cena | CX4: Zařízení | CY4: cena / ks | CZ4: ks | DA4: Cena | DB4: Zařízení | DC4: cena / ks | DD4: ks | DE4: Cena | DF4: Zařízení | DG4: cena / ks | DH4: ks | DI4: Cena | DJ4: Device | DK4: price / pc | DL4: pc | DM4: Price
A5: Ovladač světel - senzor (4x) | B5: WSB3-40 | C5: 1742 | D5: 4 | E5: =C5*D5 -> 6968 | F5: CNX-B4A | G5: 7067.5 | H5: 4 | I5: =G5*H5 -> 28270 | J5: ZME-WCD2-W | K5: 1210 | L5: 4 | M5: =K5*L5 -> 4840 | N5: GHQ6310070R0111 | O5: 3300 | P5: 4 | Q5: =O5*P5 -> 13200 | R5: 2092NABS | S5: 2172.5 | T5: 4 | U5: =S5*T5 -> 8690 | V5: 5113 00 | W5: 2887.5 | X5: 4 | Y5: =W5*X5 -> 11550 | Z5: 20001 | AA5: 2007.5 | AB5: 4 | AC5: =AA5*AB5 -> 8030 | AD5: KNX ovl. | AE5: 2173 | AF5: 4 | AG5: =AE5*AF5 -> 8692 | AH5: DPBT04-LG | AI5: 4702.5 | AJ5: 4 | AK5: =AI5*AJ5 -> 18810 | AL5: 3271E-A48900 01 | AM5: 1540 | AN5: 4 | AO5: =AM5*AN5 -> 6160 | AP5: TX304 | AQ5: 1292.5 | AR5: 4 | AS5: =AQ5*AR5 -> 5170 | AT5: 05-060-01 | AU5: 1017.5 | AV5: 4 | AW5: =AU5*AV5 -> 4070 | AX5: MTN626299 | AY5: 1760 | AZ5: 4 | BA5: =AY5*AZ5 -> 7040 | BB5: H4652/2 | BC5: 1320 | BD5: 4 | BE5: =BC5*BD5 -> 5280 | BF5: L4652/2 | BG5: 1320 | BH5: 4 | BI5: =BG5*BH5 -> 5280 | BJ5: 5034NL | BK5: 2255 | BL5: 4 | BM5: =BK5*BL5 -> 9020 | BN5: MET-7 | BO5: 4812.5 | BP5: 4 | BQ5: =BO5*BP5 -> 19250 | BR5: LCN-UP24 | BS5: 660 | BT5: 4 | BU5: =BS5*BT5 -> 2640 | BV5: OH/4I | BW5: 2475 | BX5: 4 | BY5: =BW5*BX5 -> 9900 | BZ5: 113A00-5 | CA5: 1320 | CB5: 4 | CC5: =CA5*CB5 -> 5280 | CD5: 5WG1220-2AB31 | CE5: 2447.5 | CF5: 4 | CG5: =CE5*CF5 -> 9790 | CH5: MP04R.48 | CI5: 3822.5 | CJ5: 4 | CK5: =CI5*CJ5 -> 15290 | CL5: ZN1IO-4IAD | CM5: 2777.5 | CN5: 4 | CO5: =CM5*CN5 -> 11110 | CP5: BE-TA5504.01 | CQ5: 2365 | CR5: 4 | CS5: =CQ5*CR5 -> 9460 | CT5: QL-CP108 | CV5: 4 | CW5: =CU5*CV5 -> 0 | CX5: SB-Simplese2-UK | CZ5: 4 | DA5: =CY5*CZ5 -> 0 | DB5: CS0287-004 | DD5: 4 | DE5: =DC5*DD5 -> 0 | DH5: 4 | DI5: =DG5*DH5 -> 0 | DJ5: 8000330-039 | DL5: 4
A6: Ovladač žaluzií - senzor (3x) | B6: WSB3-20 | C6: 1399 | D6: 3 | E6: =C6*D6 -> 4197 | F6: CNX-B2A | G6: 7067.5 | H6: 3 | I6: =G6*H6 -> 21202.5 | J6: ZME-WCS2-W | K6: 1210 | L6: 3 | M6: =K6*L6 -> 3630 | N6: GHQ6310074R0111 | O6: 3300 | P6: 3 | Q6: =O6*P6 -> 9900 | R6: 2091NABS | S6: 1870 | T6: 3 | U6: =S6*T6 -> 5610 | V6: 0634 01 | W6: 1457.5 | X6: 3 | Y6: =W6*X6 -> 4372.5 | Z6: 20001 | AA6: 2007.5 | AB6: 3 | AC6: =AA6*AB6 -> 6022.5 | AD6: KNX ovl. | AE6: 1870 | AF6: 3 | AG6: =AE5*AF5 -> 8692 | AH6: DPBT02-LG | AI6: 4702.5 | AJ6: 3 | AK6: =AI6*AJ6 -> 14107.5 | AL6: 3271E-A28900 01 | AM6: 1622.5 | AN6: 3 | AO6: =AM6*AN6 -> 4867.5 | AP6: TX302 | AQ6: 1127.5 | AR6: 3 | AS6: =AQ6*AR6 -> 3382.5 | AT6: 05-060-01 | AU6: 1017.5 | AV6: 3 | AW6: =AU6*AV6 -> 3052.5 | AX6: MTN626199 | AY6: 1540 | AZ6: 3 | BA6: =AY6*AZ6 -> 4620 | BB6: H4652/2 | BC6: 1320 | BD6: 3 | BE6: =BC6*BD6 -> 3960 | BF6: L4652/2 | BG6: 1320 | BH6: 3 | BI6: =BG6*BH6 -> 3960 | BJ6: 5032NL | BK6: 1980 | BL6: 3 | BM6: =BK6*BL6 -> 5940 | BN6: MET-7 | BO6: 4812.5 | BP6: 4 | BQ6: =BO6*BP6 -> 19250 | BR6: LCN-UP24 | BS6: 660 | BT6: 3 | BU6: =BS6*BT6 -> 1980 | BV6: OH/4I | BW6: 2475 | BX6: 3 | BY6: =BW6*BX6 -> 7425 | BZ6: 113A00-1 | CA6: 1072.5 | CB6: 3 | CC6: =CA6*CB6 -> 3217.5 | CD6: 5WG1220-2AB21 | CE6: 1485 | CF6: 3 | CG6: =CE6*CF6 -> 4455 | CH6: MP02R.48 | CI6: 3135 | CJ6: 3 | CK6: =CI6*CJ6 -> 9405 | CL6: ZN1IO-4IAD | CM6: 2777.5 | CN6: 3 | CO6: =CM6*CN6 -> 8332.5 | CP6: BE-TA5502.01 | CQ6: 2090 | CR6: 3 | CS6: =CQ6*CR6 -> 6270 | CT6: QL-CP108 | CV6: 3 | CW6: =CU6*CV6 -> 0 | CX6: SB-Simplese1-UK | CZ6: 3 | DA6: =CY6*CZ6 -> 0 | DB6: CS0287-004 | DD6: 3 | DE6: =DC6*DD6 -> 0 | DH6: 3 | DI6: =DG6*DH6 -> 0 | DJ6: 8000330-039 | DL6: 3
A8: Žaluzie - aktor (3x) | B8: SA3-02B | C8: 1950 | D8: 3 | E8: =C8*D8 -> 5850 | F8: C2N-SDC | G8: 6985 | H8: 2 | I8: =G8*H8 -> 13970 | J8: DIN-8REL-E | K8: 19250 | L8: 1 | M8: =K8*L8 -> 19250 | N8: JRA/S 4.230.1.1 | O8: 6077.5 | P8: 1 | Q8: =O8*P8 -> 6077.5 | R8: 2501UP | S8: 3740 | T8: 3 | U8: =S8*T8 -> 11220 | V8: 2154 00 | W8: 8937.5 | X8: 1 | Y8: =W8*X8 -> 8937.5 | Z8: 21174 | AA8: 2310 | AB8: 4 | AC8: =AA8*AB8 -> 9240 | AD8: 100038 | AE8: 11999 | AF8: 3 | AG8: =AE8*AF8 -> 35997 | AH8: DTRV01 | AI8: 7837.5 | AJ8: 1 | AK8: =AI8*AJ8 -> 7837.5 | AL8: 3270-C67400 | AM8: 5087.5 | AN8: 1 | AO8: =AM8*AN8 -> 5087.5 | AP8: TXA223 | AQ8: 6985 | AR8: 1 | AS8: =AQ8*AR8 -> 6985 | AT8: 05-001-02 | AU8: 12980 | AV8: 1 | AW8: =AU8*AV8 -> 12980 | AX8: MTN649704 | AY8: 4867.5 | AZ8: 1 | BA8: =AY8*AZ8 -> 4867.5 | BB8: F411/2 | BC8: 2035 | BD8: 3 | BE8: =BC8*BD8 -> 6105 | BF8: 775623 | BG8: 2557.5 | BH8: 3 | BI8: =BG8*BH8 -> 7672.5 | BJ8: L5501RBCP | BK8: 2667.5 | BL8: 3 | BM8: =BK8*BL8 -> 8002.5 | BN8: incl. NI-2100 | BO8: N/A | BQ8: 0 | BR8: LCN-R4M2H | BS8: 4922.5 | BT8: 1 | BU8: =BS8*BT8 -> 4922.5 | BV8: OH/MA | BW8: 3245 | BX8: 1 | BY8: =BW8*BX8 -> 3245 | BZ8: 112A00-1 | CA8: 2227.5 | CB8: 3 | CC8: =CA8*CB8 -> 6682.5 | CD8: 5WG1523-1AB03 | CE8: 6765 | CF8: 2 | CG8: =CE8*CF8 -> 13530 | CH8: SB-DRY-4Z | CI8: 4950 | CJ8: 2 | CK8: =CI8*CJ8 -> 9900 | CL8: ZN1IO-AB40 | CM8: 4427.5 | CN8: 2 | CO8: =CM8*CN8 -> 8855 | CP8: JAL-0206.01 | CQ8: 4235 | CR8: 2 | CS8: =CQ8*CR8 -> 8470 | CT8: QLCC-01 | CV8: 2 | CW8: =CU8*CV8 -> 0 | CX8: CSS-H1-WL | CZ8: 2 | DA8: =CY8*CZ8 -> 0 | DB8: CS0335-2 | DD8: 1 | DE8: =DC8*DD8 -> 0 | DF8: LVRS8-DIN | DH8: 2 | DI8: =DG8*DH8 -> 0 | DJ8: 8000220-039 | DL8: 1
A9: Podlahové vytápění - aktor (kuchyň - 1x) | B9: SA3-01B | C9: 1241 | D9: 1 | E9: =C9*D9 -> 1241 | F9: DIN-2MC2 | G9: 7837.5 | H9: 1 | I9: =G9*H9 -> 7837.5 | J9: DIN-8REL-E | K9: 19250 | L9: 1 | M9: =K9*L9 -> 19250 | N9: 6151-0-0245 | O9: 3355 | P9: 1 | Q9: =O9*P9 -> 3355 | R9: FA 10 UP | S9: 2365 | T9: 1 | U9: =S9*T9 -> 2365 | V9: 1057 00 | W9: 4180 | X9: 1 | Y9: =W9*X9 -> 4180 | Z9: 20015 | AA9: 3272.5 | AB9: 1 | AC9: =AA9*AB9 -> 3272.5 | AD9: incl. 100001 | AE9: 0 | AF9: 0 | AG9: 0 | AH9: TL2001 | AI9: 1980 | AJ9: 1 | AK9: =AI9*AJ9 -> 1980 | AL9: 3279-C17100 | AM9: 1402.5 | AN9: 1 | AO9: =AM9*AN9 -> 1402.5 | AP9: TXA204A | AQ9: 5995 | AR9: 1 | AS9: =AQ9*AR9 -> 5995 | AT9: 05-002-02 | AU9: 5225 | AV9: 1 | AW9: =AU9*AV9 -> 5225 | AX9: MTN649202 | AY9: 4070 | AZ9: 1 | BA9: =AY9*AZ9 -> 4070 | BB9: F411/1N | BC9: 1237.5 | BD9: 1 | BE9: =BC9*BD9 -> 1237.5 | BF9: 775633 | BG9: 2392.5 | BH9: 1 | BI9: =BG9*BH9 -> 2392.5 | BJ9: L5504RVF | BK9: 8497.5 | BL9: 1 | BM9: =BK9*BL9 -> 8497.5 | BN9: CCD-RS-277 | BO9: 825 | BP9: 1 | BQ9: =BO9*BP9 -> 825 | BR9: LCN-R1U | BS9: 797.5 | BT9: 1 | BU9: =BS9*BT9 -> 797.5 | BV9: OH/RP | BW9: 1650 | BX9: 1 | BY9: =BW9*BX9 -> 1650 | BZ9: 111A00-1 | CA9: 2172.5 | CB9: 1 | CC9: =CA9*CB9 -> 2172.5 | CD9: MR0416.431 | CE9: 4950 | CF9: 1 | CG9: =CE9*CF9 -> 4950 | CH9: MR0416.431 | CI9: 4950 | CJ9: 1 | CK9: =CI9*CJ9 -> 4950 | CL9: ZN1IO-AB40 | CM9: 4427.5 | CN9: 1 | CO9: =CM9*CN9 -> 4427.5 | CP9: AKK-01UP.01 | CQ9: 2420 | CR9: 1 | CS9: =CQ9*CR9 -> 2420 | CT9: SW420 | CV9: 1 | CW9: =CU9*CV9 -> 0 | CX9: SB-2R-UN | CZ9: 1 | DA9: =CY9*CZ9 -> 0 | DB9: CS0335-2 | DD9: 0 | DE9: =DC9*DD9 -> 0 | DF9: LVRS8-DIN | DH9: 1 | DI9: =DG9*DH9 -> 0
A11: Hlavní světlo - aktor (3x) | B11: DA3-22M | C11: 4788 | D11: 4 | E11: =C11*D11 -> 19152 | F11: DIN-1DIMU4 | G11: 24420 | H11: 2 | I11: =G11*H11 -> 48840 | J11: DIN-8DIM-E | K11: 27087.5 | L11: 1 | M11: =K11*L11 -> 27087.5 | N11: 6197/12-101-500 | O11: 12980 | P11: 2 | Q11: =O11*P11 -> 25960 | R11: 3904REGHE | S11: 10862.5 | T11: 2 | U11: =S11*T11 -> 21725 | V11: 2174 00 | W11: 12732.5 | X11: 2 | Y11: =W11*X11 -> 25465 | Z11: 16556 | AA11: 8415 | AB11: 8 | AC11: =AA11*AB11 -> 67320 | AD11: 100029 | AE11: 11299 | AF11: 1 | AG11: =AE11*AF11 -> 11299 | AH11: DD500 | AI11: 2117.5 | AJ11: 8 | AK11: =AI11*AJ11 -> 16940 | AL11: 3270-C27900 | AM11: 5197.5 | AN11: 4 | AO11: =AM11*AN11 -> 20790 | AP11: TXA213 | AQ11: 11330 | AR11: 3 | AS11: =AQ11*AR11 -> 33990 | AT11: 05-000-02 | AU11: 14300 | AV11: 1 | AW11: =AU11*AV11 -> 14300 | AX11: MTN649315 | AY11: 8745 | AZ11: 2 | BA11: =AY11*AZ11 -> 17490 | BB11: F415 | BC11: 3355 | BD11: 8 | BE11: =BC11*BD11 -> 26840 | BF11: 775637 | BG11: 3382.5 | BH11: 8 | BI11: 27060 | BJ11: L5504D2U | BK11: 17682.5 | BL11: 2 | BM11: =BK11*BL11 -> 35365 | BN11: CCD-6D | BO11: 2255 | BP11: 8 | BQ11: 18040 | BR11: LCN-SH | BS11: 5060 | BT11: 4 | BU11: =BS11*BT11 -> 20240 | BV11: OH/DI2230 | BW11: 9542.5 | BX11: 4 | BY11: 38170 | BZ11: 110A00-2 | CA11: 3822.5 | CB11: 8 | CC11: =CA11*CB11 -> 30580 | CD11: 5WG1527-1AB31 | CE11: 5445 | CF11: 8 | CG11: =CE11*CF11 -> 43560 | CH11: MD0206.432 | CI11: 7012.5 | CJ11: 4 | CK11: =CI11*CJ11 -> 28050 | CL11: ZN1DI-P400 | CM11: 3877.5 | CN11: 8 | CO11: =CM11*CN11 -> 31020 | CP11: AKD-0201.01 | CQ11: 8470 | CR11: 4 | CS11: =CQ11*CR11 -> 33880 | CT11: QL-8012 | CV11: 4 | CW11: =CU11*CV11 -> 0 | CX11: SB-DIM8c1A-DN | CZ11: 1 | DA11: =CY11*CZ11 -> 0 | DB11: CS0165-2 | DD11: 4 | DE11: =DC11*DD11 -> 0 | DF11: SLDS4-DIN | DH11: 2 | DI11: =DG11*DH11 -> 0 | DJ11: 8000301-039 | DL11: 4
A12: Světlo u radiátoru - aktor (3x)
A13: Lampa u pohovky - aktor (1x)
A14: Bodové světla nad barem - aktor (1x)
A16: Radiátory - hlavice (3x) | B16: termohlavice | C16: 499 | D16: 3 | E16: 1497 | F16: termohlavice | G16: 715 | H16: 3 | I16: =G16*H16 -> 2145 | J16: termohlavice | K16: 715 | L16: 3 | M16: =K16*L16 -> 2145 | N16: 2-D22-00-101 | O16: 852.5 | P16: 3 | Q16: =O16*P16 -> 2557.5 | R16: TVA 110 WW | S16: 1512.5 | T16: 3 | U16: =S16*T16 -> 4537.5 | V16: termohlavice | W16: 715 | X16: 3 | Y16: =W16*X16 -> 2145 | Z16: termohlavice | AA16: 715 | AB16: 3 | AC16: =AA16*AB16 -> 2145 | AD16: 200005 | AE16: 825 | AF16: 3 | AG16: =AE16*AF16 -> 2475 | AH16: termohlavice | AI16: 687.5 | AJ16: 3 | AK16: =AI16*AJ16 -> 2062.5 | AL16: 2-D22-00-101 | AM16: 852.5 | AN16: 3 | AO16: 2557.5 | AP16: termohlavice | AQ16: 632.5 | AR16: 3 | AS16: =AQ16*AR16 -> 1897.5 | AT16: CHVZ-01/01 | AU16: 715 | AV16: 3 | AW16: =AU16*AV16 -> 2145 | AX16: MTN639125 | AY16: 605 | AZ16: 3 | BA16: =AY16*AZ16 -> 1815 | BB16: termohlavice | BC16: 715 | BD16: 3 | BE16: =BC16*BD16 -> 2145 | BF16: termohlavice | BG16: 715 | BH16: 3 | BI16: =BG16*BH16 -> 2145 | BJ16: termohlavice | BK16: 715 | BL16: 3 | BM16: =BK16*BL16 -> 2145 | BN16: termohlavice | BO16: 715 | BP16: 3 | BQ16: =BO16*BP16 -> 2145 | BR16: LCN-AVN | BS16: 852.5 | BT16: 3 | BU16: =BS16*BT16 -> 2557.5 | BV16: termohlavice | BW16: 715 | BX16: 3 | BY16: =BW16*BX16 -> 2145 | BZ16: N/A | CA16: 0 | CC16: 0 | CD16: 5WG1562-7AB02 | CE16: 5692.5 | CF16: 3 | CG16: =CE16*CF16 -> 17077.5 | CH16: N/A | CI16: 0 | CJ16: 3 | CK16: =CI16*CJ16 -> 0 | CL16: N/A | CM16: 0 | CN16: 3 | CO16: =CM16*CN16 -> 0 | CP16: N/A | CQ16: 0 | CR16: 3 | CS16: =CQ16*CR16 -> 0 | CT16: N/A | CV16: 3 | CW16: =CU16*CV16 -> 0 | CX16: N/A | CZ16: 3 | DA16: =CY16*CZ16 -> 0 | DB16: N/A | DD16: 3 | DE16: =DC16*DD16 -> 0 | DH16: 3 | DI16: =DG16*DH16 -> 0 | DJ16: N/A | DL16: 3
A17: Radiátory - aktor (3x) | B17: DAC3-04B | C17: 3890 | D17: 1 | E17: 3890 | F17: DIN-2MC2 | G17: 7837.5 | H17: 2 | I17: 15675 | J17: DIN-8TV-E | K17: 20350 | L17: 1 | M17: 20350 | N17: 6151-0-0245 | O17: 3355 | P17: 1 | Q17: 3355 | R17: FA 10 UP | S17: 2365 | T17: 3 | U17: 7095 | V17: 1057 00 | W17: 4180 | X17: 3 | Y17: 12540 | Z17: 20016.WH | AA17: 3767.5 | AB17: 3 | AC17: =AA17*AB17 -> 11302.5 | AD17: incl. 100001 | AE17: 0 | AF17: 0 | AG17: 0 | AH17: DD10V | AI17: 1842.5 | AJ17: 3 | AK17: 5527.5 | AL17: 3270-C67600 | AM17: 4730 | AN17: 3 | AO17: 14190 | AP17: TXA204A | AQ17: 5967.5 | AR17: 1 | AS17: 5967.5 | AT17: 05-001-02 | AU17: 12980 | AV17: 1 | AW17: 12980 | AX17: MTN649202 | AY17: 4070 | AZ17: 2 | BA17: 8140 | BB17: F411/1N | BC17: 1237.5 | BD17: 3 | BE17: =BC17*BD17 -> 3712.5 | BF17: 775633 | BG17: 2392.5 | BH17: 3 | BI17: =BG17*BH17 -> 7177.5 | BJ17: L5504AMP | BK17: 9350 | BL17: 1 | BM17: =BK17*BL17 -> 9350 | BN17: CCD-RS-277 | BO17: 825 | BP17: 3 | BQ17: 2475 | BR17: LCN-AO1R | BS17: 1237.5 | BT17: 3 | BU17: =BS17*BT17 -> 3712.5 | BV17: OH/AO4010 | BW17: 9542.5 | BX17: 1 | BY17: 9542.5 | BZ17: 111A00-1 | CA17: 2172.5 | CB17: 3 | CC17: =CA17*CB17 -> 6517.5 | CD17: 5WG1605-1AB01 | CE17: 11000 | CF17: 1 | CG17: =CE17*CF17 -> 11000 | CH17: MR0416.431 | CI17: 4950 | CJ17: 1 | CK17: =CI17*CJ17 -> 4950 | CL17: ZN1IO-4IAD | CM17: 2777.5 | CN17: 3 | CO17: =CM17*CN17 -> 8332.5 | CP17: AKH-0400.01 | CQ17: 4977.5 | CR17: 3 | CS17: =CQ17*CR17 -> 14932.5 | CT17: SW420 | CV17: 1 | CW17: =CU17*CV17 -> 0 | CX17: SB-HVAC2-DN | CZ17: 1 | DA17: =CY17*CZ17 -> 0 | DB17: CS0225-2 | DD17: 1 | DE17: =DC17*DD17 -> 0 | DH17: 1 | DI17: =DG17*DH17 -> 0 | DJ17: N/A
A19: Centrální dotykový panel (1x) | B19: EST-3 | C19: 5990 | D19: 1 | E19: 5990 | F19: TPS-4LB | G19: 47822.5 | H19: 1 | I19: =G19*H19 -> 47822.5 | J19: TW7C0-BL | K19: 34210 | L19: 1 | M19: =K19*L19 -> 34210 | N19: 6136-0-0185 | O19: 34100 | P19: 1 | Q19: =O19*P19 -> 34100 | R19: SP 9 FAPVE | S19: 141542.5 | T19: 1 | U19: =S19*T19 -> 141542.5 | V19: 2072 05 | W19: 39875 | X19: 1 | Y19: =W19*X19 -> 39875 | Z19: 14848.SL | AA19: 14135 | AB19: 1 | AC19: =AA19*AB19 -> 14135 | AD19: N/A | AE19: 0 | AG19: 0 | AH19: DLCD01 | AI19: 8195 | AJ19: 1 | AK19: 8195 | AL19: 3273M-A98900 03 | AM19: 4785 | AN19: 1 | AO19: =AM19*AN19 -> 4785 | AP19: TX450A | AQ19: 6957.5 | AR19: 1 | AS19: 6957.5 | AT19: 05-096 | AU19: 40150 | AV19: 1 | AW19: 40150 | AX19: MTN6260‑1007 | AY19: 33412.5 | AZ19: 1 | BA19: 33412.5 | BB19: L4684SDK | BC19: 36107.5 | BD19: 1 | BE19: 36107.5 | BF19: 7756 19 | BG19: 31707.5 | BH19: 1 | BI19: 31707.5 | BJ19: 5080CTC3-PW | BK19: 56210 | BL19: 1 | BM19: =BK19*BL19 -> 56210 | BN19: MXD-430 | BO19: 42762.5 | BP19: 1 | BQ19: 42762.5 | BR19: LCN-GT10DW | BS19: 11660 | BT19: 1 | BU19: =BS19*BT19 -> 11660 | BV19: MITHO HA NF | BW19: 17682.5 | BX19: 1 | BY19: 17682.5 | BZ19: N/A | CA19: 0 | CC19: 0 | CD19: Tefora SL | CE19: 22797.5 | CF19: 1 | CG19: =CE19*CF19 -> 22797.5 | CH19: SB-WL-TS7 | CI19: 30250 | CJ19: 1 | CK19: =CI19*CJ19 -> 30250 | CL19: ZN1VI-TP41C | CM19: 14547.5 | CN19: 1 | CO19: =CM19*CN19 -> 14547.5 | CP19: VC-0701.03 | CQ19: 28655 | CR19: 1 | CS19: =CQ19*CR19 -> 28655 | CT19: QL-CPT301 | CV19: 1 | CW19: =CU19*CV19 -> 0 | CX19: SB-CDP-J | CZ19: 1 | DA19: =CY19*CZ19 -> 0 | DB19: CS0372 | DD19: 1 | DE19: =DC19*DD19 -> 0 | DF19: EQ41TB-TI | DH19: 1 | DI19: =DG19*DH19 -> 0 | DJ19: 8000333-039 | DL19: 1
A22: SYSTÉMOVÉ PRVKY (závisí na systému)
A23: Řídící jednotka | B23: CU3-01M | C23: 11500 | D23: 1 | E23: =C23*D23 -> 11500 | F23: DIN-AP2 | G23: 22385 | H23: 1 | I23: =G23*H23 -> 22385 | J23: HC250-BL-1 | K23: 24970 | L23: 1 | M23: =K23*L23 -> 24970 | R23: FMC 1000 | S23: 18177.5 | T23: 1 | U23: =S23*T23 -> 18177.5 | Z23: N/A | AA23: N/A | AC23: 0 | AD23: 100001 | AE23: 12499 | AF23: 1 | AG23: =AE23*AF23 -> 12499 | AH23: DGQG01 | AI23: 18040 | AJ23: 1 | AK23: =AI23*AJ23 -> 18040 | AL23: 3270-C16100 | AM23: 9130 | AN23: 1 | AO23: =AM23*AN23 -> 9130 | AP23: TX 100 | AQ23: 16390 | AR23: 1 | AS23: =AQ23*AR23 -> 16390 | BJ23: 5500PACA | BK23: 13722.5 | BL23: 1 | BM23: =BK23*BL23 -> 13722.5 | BN23: NI-2100 | BO23: 32972.5 | BP23: 1 | BQ23: 32972.5 | BR23: N/A | BS23: N/A | BU23: 0 | BV23: N/A | BW23: N/A | BX23: 0 | BY23: 0 | BZ23: 117A00-1 | CA23: 22385 | CB23: 1 | CC23: =CA23*CB23 -> 22385 | CD23: QAX903-CS | CE23: 9900 | CF23: 1 | CG23: =CE23*CF23 -> 9900 | CH23: N/A | CI23: 0 | CJ23: 1 | CK23: =CI23*CJ23 -> 0 | CL23: N/A | CM23: 0 | CN23: 1 | CO23: =CM23*CN23 -> 0 | CP23: VC-EASY.01 | CQ23: 16472.5 | CR23: 1 | CS23: =CQ23*CR23 -> 16472.5 | CT23: QL NE100 | CV23: 1 | CW23: =CU23*CV23 -> 0 | CX23: SB-Logic2-DN | CZ23: 1 | DA23: =CY23*CZ23 -> 0 | DB23: CS0453 | DD23: 1 | DE23: =DC23*DD23 -> 0 | DH23: 1 | DI23: =DG23*DH23 -> 0 | DL23: 1
A24: Napájecí zdroj | B24: PS3-100/iNELS | C24: 2790 | D24: 1 | E24: =C24*D24 -> 2790 | F24: DIN-PWS50 | G24: 4097.5 | H24: 1 | I24: =G24*H24 -> 4097.5 | J24: N/A | K24: N/A | M24: 0 | N24: 2CDG110085R0011 | O24: 4730 | P24: 1 | Q24: =O24*P24 -> 4730 | R24: 2005 REG | S24: 5665 | T24: 1 | U24: =S24*T24 -> 5665 | V24: 1079 00 | W24: 12155 | X24: 1 | Y24: =W24*X24 -> 12155 | Z24: 1801 | AA24: 6572.5 | AB24: 1 | AC24: =AA24*AB24 -> 6572.5 | AD24: 200002 | AE24: 1540 | AF24: 1 | AG24: 1540 | AH24: DALI01 | AI24: 3272.5 | AJ24: 1 | AK24: =AI24*AJ24 -> 3272.5 | AL24: 6120-0-0065 | AM24: 4812.5 | AN24: 1 | AO24: =AM24*AN24 -> 4812.5 | AP24: TX111 | AQ24: 7617.5 | AR24: 1 | AS24: =AQ24*AR24 -> 7617.5 | AT24: 360-47000 | AU24: 3712.5 | AV24: 1 | AW24: =AU24*AV24 -> 3712.5 | AX24: MTN693004 | AY24: 4125 | AZ24: 1 | BA24: =AY24*AZ24 -> 4125 | BB24: E46ADCN | BC24: 1897.5 | BD24: 1 | BE24: =BC24*BD24 -> 1897.5 | BF24: E46ADCN | BG24: 2887.5 | BH24: 1 | BI24: =BG24*BH24 -> 2887.5 | BJ24: 5500PS | BK24: 6022.5 | BL24: 1 | BM24: =BK24*BL24 -> 6022.5 | BN24: N/A | BO24: N/A | BQ24: 0 | BR24: LCN-NH24 | BS24: 1375 | BT24: 1 | BU24: =BS24*BT24 -> 1375 | BV24: OH/A.01 | BW24: 6682.5 | BX24: 1 | BY24: 6682.5 | BZ24: 123A00-1 | CA24: 5747.5 | CB24: 1 | CC24: =CA24*CB24 -> 5747.5 | CD24: 5WG1125-1AB22 | CE24: 8745 | CF24: 1 | CG24: =CE24*CF24 -> 8745 | CH24: DN-PS750 | CI24: 2722.5 | CJ24: 1 | CK24: =CI24*CJ24 -> 2722.5 | CL24: ZN1PS-320MPA230 | CM24: 5197.5 | CN24: 1 | CO24: =CM24*CN24 -> 5197.5 | CP24: STV-320.01 | CQ24: 5060 | CR24: 1 | CS24: =CQ24*CR24 -> 5060 | CT24: QL PS1202 | CV24: 1 | CW24: =CU24*CV24 -> 0 | CX24: SB-MW-NFM-15-DN | CZ24: 1 | DA24: =CY24*CZ24 -> 0 | DB24: CS0368 | DD24: 1 | DE24: =DC24*DD24 -> 0 | DH24: 1 | DI24: =DG24*DH24 -> 0
A25: Modul rozhraní pro stmívače | AH25: DDIM01 | AI25: 3822.5 | AJ25: 1 | AK25: 3822.5
A26: Spínací modul - rozhraní | AH26: DTRP01 | AI26: 2172.5 | AJ26: 1 | AK26: 2172.5
BR27: Software | BS27: 25300 | BT27: 1 | BU27: =BS27*BT27 -> 25300
A28: NÁKLADY
A29: Cena celková (sečteny ceny za 1ks) | C29: =SUM(C5:C26) -> 35789 | G29: =SUM(G5:G26) -> 136235 | K29: =SUM(K5:K27) -> 148252.5 | O29: =SUM(O5:O26) -> 72050 | S29: =SUM(S5:S26) -> 190272.5 | W29: =SUM(W5:W26) -> 87120 | AA29: =SUM(AA5:AA27) -> 43202.5 | AE29: =SUM(AE5:AE27) -> 42205 | AI29: =SUM(AI5:AI26) -> 59372.5 | AM29: =SUM(AM5:AM26) -> 39160 | AQ29: =SUM(AQ5:AQ26) -> 64295 | AU29: =SUM(AU5:AU26) -> 92097.5 | AY29: =SUM(AY5:AY26) -> 63195 | BC29: =SUM(BC5:BC26) -> 49225 | BG29: =SUM(BG5:BG27) -> 48675 | BK29: =SUM(BK5:BK27) -> 119102.5 | BO29: =SUM(BO5:BO27) -> 89980 | BS29: =SUM(BS5:BS27) -> 52525 | BW29: =SUM(BW5:BW27) -> 54010 | CA29: =SUM(CA5:CA27) -> 40920 | CE29: =SUM(CE5:CE27) -> 79227.5 | CI29: =SUM(CI5:CI27) -> 61792.5 | CM29: =SUM(CM5:CM27) -> 40810 | CQ29: =SUM(CQ5:CQ27) -> 74745 | CU29: =SUM(CU5:CU27) -> 0 | CY29: =SUM(CY5:CY27) -> 0 | DC29: =SUM(DC5:DC27) -> 0 | DG29: =SUM(DG5:DG27) -> 0 | DK29: =SUM(DK5:DK27) -> 0
A30: Počet zařízení v projektu | D30: =SUM(D5:D26) -> 22 | H30: =SUM(H5:H26) -> 20 | L30: =SUM(L5:L29) -> 16 | P30: =SUM(P5:P26) -> 17 | T30: =SUM(T5:T26) -> 22 | X30: =SUM(X5:X26) -> 19 | AB30: =SUM(AB5:AB29) -> 28 | AF30: =SUM(AF5:AF29) -> 16 | AJ30: =SUM(AJ5:AJ26) -> 28 | AN30: =SUM(AN5:AN26) -> 22 | AR30: =SUM(AR5:AR26) -> 19 | AV30: =SUM(AV5:AV26) -> 16 | AZ30: =SUM(AZ5:AZ26) -> 18 | BD30: =SUM(BD5:BD26) -> 27 | BH30: =SUM(BH5:BH27) -> 27 | BL30: =SUM(BL5:BL29) -> 20 | BP30: =SUM(BP5:BP29) -> 25 | BT30: =SUM(BT5:BT29) -> 22 | BX30: =SUM(BX5:BX29) -> 19 | CB30: =SUM(CB5:CB29) -> 24 | CF30: =SUM(CF5:CF29) -> 25 | CJ30: =SUM(CJ5:CJ29) -> 21 | CN30: =SUM(CN5:CN29) -> 27 | CR30: =SUM(CR5:CR29) -> 23 | CV30: =SUM(CV5:CV29) -> 21 | CZ30: =SUM(CZ5:CZ29) -> 18 | DD30: =SUM(DD5:DD29) -> 19 | DH30: =SUM(DH5:DH29) -> 19 | DL30: =SUM(DL5:DL29) -> 17
A31: Celkové náklady na projekt | E31: =SUM(E5:E26) -> 63075 | I31: =SUM(I5:I26) -> 212245 | M31: =SUM(M5:M30) -> 155732.5 | Q31: =SUM(Q5:Q26) -> 103235 | U31: =SUM(U5:U26) -> 226627.5 | Y31: =SUM(Y5:Y26) -> 121220 | AC31: =SUM(AC5:AC30) -> 128040 | AD31: Cena bez dotykového panelu | AG31: =SUM(AG5:AG30) -> 81194 | AK31: =SUM(AK5:AK26) -> 102767.5 | AO31: =SUM(AO5:AO26) -> 73782.5 | AS31: =SUM(AS5:AS26) -> 94352.5 | AW31: =SUM(AW5:AW26) -> 98615 | BA31: =SUM(BA5:BA26) -> 85580 | BE31: =SUM(BE5:BE26) -> 87285 | BI31: =SUM(BI5:BI26) -> 90282.5 | BM31: =SUM(BM5:BM30) -> 154275 | BQ31: =SUM(BQ5:BQ30) -> 137720 | BR31: Cena bez dotykového panelu | BU31: =SUM(BU5:BU30) -> 75185 | BY31: =SUM(BY5:BY30) -> 96442.5 | BZ31: Cena bez dotykového panelu -> | CC31: =SUM(CC5:CC30) -> 82582.5 | CG31: =SUM(CG5:CG30) -> 145805 | CK31: =SUM(CK5:CK30) -> 105517.5 | CO31: =SUM(CO5:CO30) -> 91822.5 | CS31: =SUM(CS5:CS30) -> 125620 | CW31: =SUM(CW5:CW30) -> 0 | DA31: =SUM(DA5:DA30) -> 0 | DE31: =SUM(DE5:DE30) -> 0 | DI31: =SUM(DI5:DI30) -> 0 | DM31: =SUM(DM5:DM30) -> 0
F33: Popis vzorového projektu: Uvažují se vždy 3 pokoje - obývák s kuchyní, dětský pokoj a ložnice. V každé místnosti se ovládá: 2x světla, 1x topení, 1x žaluzie. Jsou kalkulovány pouze ty prvky, které se u dané funkce mění. Ty, které zůstávají funkčně stejné (bez ohledu na design a provedení) se nekalkulují. Nejsou kalkulovány zařízení a spotřebiče: světla, lampy, radiátory, podlahovka, žaluzie. Ty ale v rámci porovnání zůstávají shodné. Nejsou kalkulovány kabely a instalační materiál. Cena ale v rámci uvedených instalací bude podobná a nebude se lišit o více než 10%. Vypínače a ovladače jsou kalkulovány v základních designech (většinou plastové rámečky). Ceny jsou uvedeny v Kč bez DPH.
F34: Pozn. Vybírány byly přednostně jednotky určené pro montáž do rozváděče s nejnižší cenou. V případě, že jednotku se nepodařilo zjistit nebo se nevyrábí, je daná položka nahrazena zkratkou N/A a cena je nastavena na 0.
DV123: CENOVÉ SROVNÁNÍ INTELIGENTNÍCH ELEKTROINSTALACÍ
CP124: Zařízení | CQ124: cena / ks | CR124: ks | CS124: Cena | CT124: Zařízení | CU124: cena / ks | CV124: ks | CW124: Cena | CX124: Zařízení | CY124: cena / ks | CZ124: ks | DA124: Cena | DB124: Zařízení | DC124: cena / ks | DD124: ks | DE124: Cena | DF124: Zařízení | DG124: cena / ks | DH124: ks | DI124: Cena | DJ124: Zařízení | DK124: cena / ks | DL124: ks | DM124: Cena | DN124: Zařízení | DO124: cena / ks | DP124: ks | DQ124: Cena | DR124: Zařízení | DS124: cena / ks | DT124: ks | DU124: Cena | DV124: AKTORY A SENZORY | DW124: Zařízení | DX124: cena / ks | DY124: ks | DZ124: Cena | EA124: Zařízení | EB124: cena / ks | EC124: ks | ED124: Cena | EE124: Zařízení | EF124: cena / ks | EG124: ks | EH124: Cena | EI124: Zařízení | EJ124: cena / ks | EK124: ks | EL124: Cena
CP125: =AH5 -> DPBT04-LG | CQ125: 4702.5 | CR125: 4 | CS125: 18810 | CT125: 3271E-A48900 01 | CU125: 1540 | CV125: 4 | CW125: 6160 | CX125: TX304 | CY125: 1292.5 | CZ125: 4 | DA125: 5170 | DB125: 05-060-01 | DC125: 1017.5 | DD125: 4 | DE125: 4070 | DF125: MTN626299 | DG125: 1760 | DH125: 4 | DI125: 7040 | DJ125: =BF5 -> L4652/2 | DK125: 1320 | DL125: 4 | DM125: 5280 | DN125: =#REF! ->  | DO125: =#REF! ->  | DP125: =#REF! ->  | DQ125: =#REF! ->  | DR125: =#REF! ->  | DS125: =#REF! ->  | DT125: =#REF! ->  | DU125: =#REF! ->  | DV125: Ovladač světel - sensor (4x) | DW125: =#REF! ->  | DX125: =#REF! ->  | DY125: =#REF! ->  | DZ125: =#REF! ->  | EA125: =BN5 -> MET-7 | EB125: 4812.5 | EC125: 4 | ED125: 19250 | EE125: LCN-UP24 | EF125: 660 | EG125: 4 | EH125: 2640 | EI125: OH/4I | EJ125: 2475 | EK125: 4 | EL125: 9900
CP126: =AH7 ->  | DJ126: =BF7 ->  | DN126: =#REF! ->  | DO126: =#REF! ->  | DP126: =#REF! ->  | DQ126: =#REF! ->  | DR126: =#REF! ->  | DS126: =#REF! ->  | DT126: =#REF! ->  | DU126: =#REF! ->  | DW126: =#REF! ->  | DX126: =#REF! ->  | DY126: =#REF! ->  | DZ126: =#REF! ->  | EA126: =BN7 ->  | EI126: 0 | EJ126: 0 | EK126: 0 | EL126: 0
CP127: =AH11 -> DD500 | CQ127: 2117.5 | CR127: 8 | CS127: 16940 | CT127: 3270-C27900 | CU127: 5197.5 | CV127: 4 | CW127: 20790 | CX127: TXA213 | CY127: 11330 | CZ127: 3 | DA127: 33990 | DB127: 05-000-02 | DC127: 14300 | DD127: 1 | DE127: 14300 | DF127: =AX11 -> MTN649315 | DG127: 8745 | DH127: 2 | DI127: 17490 | DJ127: =BF11 -> 775637 | DK127: 3382.5 | DL127: 8 | DM127: 27060 | DN127: =#REF! ->  | DO127: =#REF! ->  | DP127: =#REF! ->  | DQ127: =#REF! ->  | DR127: =#REF! ->  | DS127: =#REF! ->  | DT127: =#REF! ->  | DU127: =#REF! ->  | DV127: Hlavní světlo (strop, 3x) - aktor | DW127: =#REF! ->  | DX127: =#REF! ->  | DY127: =#REF! ->  | DZ127: =#REF! ->  | EA127: =BN11 -> CCD-6D | EB127: 2255 | EC127: 8 | ED127: 18040 | EE127: LCN-SH | EF127: 5060 | EG127: 4 | EH127: 20240 | EI127: OH/DI2230 | EJ127: 9542.5 | EK127: 4 | EL127: 38170
DN128: =#REF! ->  | DO128: =#REF! ->  | DP128: =#REF! ->  | DQ128: =#REF! ->  | DR128: =#REF! ->  | DS128: =#REF! ->  | DT128: =#REF! ->  | DU128: =#REF! ->  | DV128: Světlo u radiátoru (3x) - aktor | DW128: =#REF! ->  | DX128: =#REF! ->  | DY128: =#REF! ->  | DZ128: =#REF! -> 
DN129: =#REF! ->  | DO129: =#REF! ->  | DP129: =#REF! ->  | DQ129: =#REF! ->  | DR129: =#REF! ->  | DS129: =#REF! ->  | DT129: =#REF! ->  | DU129: =#REF! ->  | DV129: Lampa u pohovky (1x) - aktor | DW129: =#REF! ->  | DX129: =#REF! ->  | DY129: =#REF! ->  | DZ129: =#REF! -> 
DN130: =#REF! ->  | DO130: =#REF! ->  | DP130: =#REF! ->  | DQ130: =#REF! ->  | DR130: =#REF! ->  | DS130: =#REF! ->  | DT130: =#REF! ->  | DU130: =#REF! ->  | DV130: Bodové světla nad barem (1x) - aktor | DW130: =#REF! ->  | DX130: =#REF! ->  | DY130: =#REF! ->  | DZ130: =#REF! -> 
DN131: =#REF! ->  | DO131: =#REF! ->  | DP131: =#REF! ->  | DQ131: =#REF! ->  | DR131: =#REF! ->  | DS131: =#REF! ->  | DT131: =#REF! ->  | DU131: =#REF! ->  | DW131: =#REF! ->  | DX131: =#REF! ->  | DY131: =#REF! ->  | DZ131: =#REF! -> 
CP132: =AH9 -> TL2001 | CQ132: 1980 | CR132: 1 | CS132: 1980 | CT132: 3279-C17100 | CU132: 1402.5 | CV132: 1 | CW132: 1402.5 | CX132: TXA204A | CY132: 5995 | CZ132: 1 | DA132: 5995 | DB132: 05-002-02 | DC132: 5225 | DD132: 1 | DE132: 5225 | DF132: =AX9 -> MTN649202 | DG132: 4070 | DH132: 1 | DI132: 4070 | DJ132: =BF9 -> 775633 | DK132: 2392.5 | DL132: 1 | DM132: 2392.5 | DN132: =#REF! ->  | DO132: =#REF! ->  | DP132: =#REF! ->  | DQ132: =#REF! ->  | DR132: =#REF! ->  | DS132: =#REF! ->  | DT132: =#REF! ->  | DU132: =#REF! ->  | DV132: Podlahové vytápění (1x) - aktor (kuchyň) | DW132: =#REF! ->  | DX132: =#REF! ->  | DY132: =#REF! ->  | DZ132: =#REF! ->  | EA132: =BN9 -> CCD-RS-277 | EB132: 825 | EC132: 1 | ED132: 825 | EE132: LCN-R1U | EF132: 797.5 | EG132: 1 | EH132: 797.5 | EI132: OH/RP | EJ132: 1650 | EK132: 1 | EL132: 1650
DN133: =#REF! ->  | DO133: =#REF! ->  | DP133: =#REF! ->  | DQ133: =#REF! ->  | DR133: =#REF! ->  | DS133: =#REF! ->  | DT133: =#REF! ->  | DU133: =#REF! ->  | DW133: =#REF! ->  | DX133: =#REF! ->  | DY133: =#REF! ->  | DZ133: =#REF! -> 
CP134: =AH16 -> termohlavice | CQ134: 687.5 | CR134: 3 | CS134: 2062.5 | CT134: 2-D22-00-101 | CU134: 852.5 | CV134: 3 | CW134: 2557.5 | CX134: termohlavice | CY134: 632.5 | CZ134: 3 | DA134: 1897.5 | DB134: CHVZ-01/01 | DC134: 715 | DD134: 3 | DE134: 2145 | DF134: =AX16 -> MTN639125 | DG134: 605 | DH134: 3 | DI134: 1815 | DJ134: =BF16 -> termohlavice | DK134: 715 | DL134: 3 | DM134: 2145 | DN134: =#REF! ->  | DO134: =#REF! ->  | DP134: =#REF! ->  | DQ134: =#REF! ->  | DR134: =#REF! ->  | DS134: =#REF! ->  | DT134: =#REF! ->  | DU134: =#REF! ->  | DV134: Radiátory (3x) - hlavice | DW134: =#REF! ->  | DX134: =#REF! ->  | DY134: =#REF! ->  | DZ134: =#REF! ->  | EA134: =BN16 -> termohlavice | EB134: 715 | EC134: 3 | ED134: 2145 | EE134: LCN-AVN | EF134: 852.5 | EG134: 3 | EH134: 2557.5 | EI134: termohlavice | EJ134: 715 | EK134: 3 | EL134: 2145
CP135: DD10V | CQ135: 1842.5 | CR135: 3 | CS135: 5527.5 | CT135: 3270-C67600 | CU135: 4730 | CV135: 3 | CW135: 14190 | CX135: TXA204A | CY135: 5967.5 | CZ135: 1 | DA135: 5967.5 | DB135: 05-001-02 | DC135: 12980 | DD135: 1 | DE135: 12980 | DF135: MTN649202 | DG135: 4070 | DH135: 2 | DI135: 8140 | DJ135: 775633 | DK135: 2392.5 | DL135: 3 | DM135: 7177.5 | DN135: =#REF! ->  | DO135: =#REF! ->  | DP135: =#REF! ->  | DQ135: =#REF! ->  | DR135: =#REF! ->  | DS135: =#REF! ->  | DT135: =#REF! ->  | DU135: =#REF! ->  | DV135: Radiátory (3x) - aktor | DW135: =#REF! ->  | DX135: =#REF! ->  | DY135: =#REF! ->  | DZ135: =#REF! ->  | EA135: CCD-RS-277 | EB135: 825 | EC135: 3 | ED135: 2475 | EE135: LCN-AO1R | EF135: 1237.5 | EG135: 3 | EH135: 3712.5 | EI135: OH/AO4010 | EJ135: 9542.5 | EK135: 1 | EL135: 9542.5
DN136: =#REF! ->  | DO136: =#REF! ->  | DP136: =#REF! ->  | DQ136: =#REF! ->  | DR136: =#REF! ->  | DS136: =#REF! ->  | DT136: =#REF! ->  | DU136: =#REF! ->  | DW136: =#REF! ->  | DX136: =#REF! ->  | DY136: =#REF! ->  | DZ136: =#REF! -> 
CP137: DLCD01 | CQ137: 8195 | CR137: 1 | CS137: 8195 | CT137: 3273M-A98900 03 | CU137: 4785 | CV137: 1 | CW137: 4785 | CX137: TX450A | CY137: 6957.5 | CZ137: 1 | DA137: 6957.5 | DB137: 05-096 | DC137: 40150 | DD137: 1 | DE137: 40150 | DF137: MTN6260‑1007 | DG137: 33412.5 | DH137: 1 | DI137: 33412.5 | DJ137: 7756 19 | DK137: 31707.5 | DL137: 1 | DM137: 31707.5 | DN137: =#REF! ->  | DO137: =#REF! ->  | DP137: =#REF! ->  | DQ137: =#REF! ->  | DR137: =#REF! ->  | DS137: =#REF! ->  | DT137: =#REF! ->  | DU137: =#REF! ->  | DV137: Centrální dotykový panel (1x) | DW137: =#REF! ->  | DX137: =#REF! ->  | DY137: =#REF! ->  | DZ137: =#REF! ->  | EA137: MXD-430 | EB137: 42762.5 | EC137: 1 | ED137: 42762.5 | EE137: LCN-GT10DW | EF137: 11660 | EG137: 1 | EH137: 11660 | EI137: MITHO HA NF | EJ137: 17682.5 | EK137: 1 | EL137: 17682.5
DN138: =#REF! ->  | DO138: =#REF! ->  | DP138: =#REF! ->  | DQ138: =#REF! ->  | DR138: =#REF! ->  | DS138: =#REF! ->  | DT138: =#REF! ->  | DU138: =#REF! ->  | DW138: =#REF! ->  | DX138: =#REF! ->  | DY138: =#REF! ->  | DZ138: =#REF! -> 
CP139: =AH8 -> DTRV01 | CQ139: 7837.5 | CR139: 1 | CS139: 7837.5 | CT139: 3270-C67400 | CU139: 5087.5 | CV139: 1 | CW139: 5087.5 | CX139: TXA223 | CY139: 6985 | CZ139: 1 | DA139: 6985 | DB139: 05-001-02 | DC139: 12980 | DD139: 1 | DE139: 12980 | DF139: MTN649704 | DG139: 4867.5 | DH139: 1 | DI139: 4867.5 | DJ139: =BF8 -> 775623 | DK139: 2557.5 | DL139: 3 | DM139: 7672.5 | DN139: =#REF! ->  | DO139: =#REF! ->  | DP139: =#REF! ->  | DQ139: =#REF! ->  | DR139: =#REF! ->  | DS139: =#REF! ->  | DT139: =#REF! ->  | DU139: =#REF! ->  | DV139: Žaluzie (3x) - aktor | DW139: =#REF! ->  | DX139: =#REF! ->  | DY139: =#REF! ->  | DZ139: =#REF! ->  | EA139: =BN8 -> incl. NI-2100 | EB139: N/A | EC139: 0 | ED139: 0 | EE139: LCN-R4M2H | EF139: 4922.5 | EG139: 1 | EH139: 4922.5 | EI139: OH/MA | EJ139: 3245 | EK139: 1 | EL139: 3245
CP140: =AH6 -> DPBT02-LG | CQ140: 4702.5 | CR140: 3 | CS140: 14107.5 | CT140: 3271E-A28900 01 | CU140: 1622.5 | CV140: 3 | CW140: 4867.5 | CX140: TX302 | CY140: 1127.5 | CZ140: 3 | DA140: 3382.5 | DB140: 05-060-01 | DC140: 1017.5 | DD140: 3 | DE140: 3052.5 | DF140: MTN626199 | DG140: 1540 | DH140: 3 | DI140: 4620 | DJ140: =BF6 -> L4652/2 | DK140: 1320 | DL140: 3 | DM140: 3960 | DN140: =#REF! ->  | DO140: =#REF! ->  | DP140: =#REF! ->  | DQ140: =#REF! ->  | DR140: =#REF! ->  | DS140: =#REF! ->  | DT140: =#REF! ->  | DU140: =#REF! ->  | DV140: Žaluzie (3x) - sensor | DW140: =#REF! ->  | DX140: =#REF! ->  | DY140: =#REF! ->  | DZ140: =#REF! ->  | EA140: =BN6 -> MET-7 | EB140: 4812.5 | EC140: 4 | ED140: 19250 | EE140: LCN-UP24 | EF140: 660 | EG140: 3 | EH140: 1980 | EI140: OH/4I | EJ140: 2475 | EK140: 3 | EL140: 7425
CP141: =AH21 ->  | DF141: =AX21 ->  | DJ141: =BF21 ->  | DN141: =#REF! ->  | DO141: =#REF! ->  | DP141: =#REF! ->  | DQ141: =#REF! ->  | DR141: =#REF! ->  | DS141: =#REF! ->  | DT141: =#REF! ->  | DU141: =#REF! ->  | DW141: =#REF! ->  | DX141: =#REF! ->  | DY141: =#REF! ->  | DZ141: =#REF! ->  | EA141: =BN21 ->  | EB141: =BO21 ->  | EC141: =BP21 ->  | ED141: =BQ21 ->  | EE141: =BR21 ->  | EF141: =BS21 ->  | EG141: =BT21 ->  | EH141: =BU21 ->  | EI141: =BV21 ->  | EJ141: =BW21 ->  | EK141: =BX21 ->  | EL141: =BY21 -> 
DN142: =#REF! ->  | DO142: =#REF! ->  | DP142: =#REF! ->  | DQ142: =#REF! ->  | DR142: =#REF! ->  | DS142: =#REF! ->  | DT142: =#REF! ->  | DU142: =#REF! ->  | DV142: SYSTÉMOVÉ PRVKY (závisí na systému) | DW142: =#REF! ->  | DX142: =#REF! ->  | DY142: =#REF! ->  | DZ142: =#REF! -> 
CP143: DGQG01 | CQ143: 18040 | CR143: 1 | CS143: 18040 | CT143: 3270-C16100 | CU143: 9130 | CV143: 1 | CW143: 9130 | CX143: TX 100 | CY143: 16390 | CZ143: 1 | DA143: 16390 | DN143: =#REF! ->  | DO143: =#REF! ->  | DP143: =#REF! ->  | DQ143: =#REF! ->  | DR143: =#REF! ->  | DS143: =#REF! ->  | DT143: =#REF! ->  | DU143: =#REF! ->  | DV143: Řídící jednotka | DW143: =#REF! ->  | DX143: =#REF! ->  | DY143: =#REF! ->  | DZ143: =#REF! ->  | EA143: NI-2100 | EB143: 32972.5 | EC143: 1 | ED143: 32972.5 | EE143: N/A | EF143: N/A | EH143: 0 | EI143: N/A | EJ143: N/A | EK143: 0 | EL143: 0
CP144: =#REF! ->  | CQ144: =#REF! ->  | CR144: =#REF! ->  | CS144: =#REF! ->  | CT144: =#REF! ->  | CU144: =#REF! ->  | CV144: =#REF! ->  | CW144: =#REF! ->  | CX144: =#REF! ->  | CY144: =#REF! ->  | CZ144: =#REF! ->  | DA144: =#REF! ->  | DB144: =#REF! ->  | DC144: =#REF! ->  | DD144: =#REF! ->  | DE144: =#REF! ->  | DF144: =#REF! ->  | DG144: =#REF! ->  | DH144: =#REF! ->  | DI144: =#REF! ->  | DJ144: =#REF! ->  | DK144: =#REF! ->  | DL144: =#REF! ->  | DM144: =#REF! ->  | DN144: =#REF! ->  | DO144: =#REF! ->  | DP144: =#REF! ->  | DQ144: =#REF! ->  | DR144: =#REF! ->  | DS144: =#REF! ->  | DT144: =#REF! ->  | DU144: =#REF! ->  | DV144: Oddělovač sběrnice | DW144: =#REF! ->  | DX144: =#REF! ->  | DY144: =#REF! ->  | DZ144: =#REF! ->  | EA144: =#REF! ->  | EB144: =#REF! ->  | EC144: =#REF! ->  | ED144: =#REF! ->  | EE144: =#REF! ->  | EF144: =#REF! ->  | EG144: =#REF! ->  | EH144: =#REF! ->  | EI144: =#REF! ->  | EJ144: =#REF! ->  | EK144: =#REF! ->  | EL144: =#REF! -> 
CP145: =AH24 -> DALI01 | CQ145: 3272.5 | CR145: 1 | CS145: 3272.5 | CT145: 6120-0-0065 | CU145: 4812.5 | CV145: 1 | CW145: 4812.5 | CX145: TX111 | CY145: 7617.5 | CZ145: 1 | DA145: 7617.5 | DB145: 360-47000 | DC145: 3712.5 | DD145: 1 | DE145: 3712.5 | DF145: =AX24 -> MTN693004 | DG145: 4125 | DH145: 1 | DI145: 4125 | DJ145: =BF24 -> E46ADCN | DK145: 2887.5 | DL145: 1 | DM145: 2887.5 | DN145: =#REF! ->  | DO145: =#REF! ->  | DP145: =#REF! ->  | DQ145: =#REF! ->  | DR145: =#REF! ->  | DS145: =#REF! ->  | DT145: =#REF! ->  | DU145: =#REF! ->  | DV145: Napájecí zdroj | DW145: =#REF! ->  | DX145: =#REF! ->  | DY145: =#REF! ->  | DZ145: =#REF! ->  | EA145: =BN24 -> N/A | EB145: =BO24 -> N/A | EC145: =BP24 -> 0 | ED145: =BQ24 -> 0 | EE145: =BR24 -> LCN-NH24 | EF145: =BS24 -> 1375 | EG145: =BT24 -> 1 | EH145: =BU24 -> 1375 | EI145: =BV24 -> OH/A.01 | EJ145: =BW24 -> 6682.5 | EK145: =BX24 -> 1 | EL145: =BY24 -> 6682.5
CP146: DDIM01 | CQ146: 3822.5 | CR146: 1 | CS146: 3822.5 | DN146: =#REF! ->  | DO146: =#REF! ->  | DP146: =#REF! ->  | DQ146: =#REF! ->  | DR146: =#REF! ->  | DS146: =#REF! ->  | DT146: =#REF! ->  | DU146: =#REF! ->  | DV146: Modul rozhraní pro stmívače | DW146: =#REF! ->  | DX146: =#REF! ->  | DY146: =#REF! ->  | DZ146: =#REF! -> 
CP147: DTRP01 | CQ147: 2172.5 | CR147: 1 | CS147: 2172.5 | DN147: =#REF! ->  | DO147: =#REF! ->  | DP147: =#REF! ->  | DQ147: =#REF! ->  | DR147: =#REF! ->  | DS147: =#REF! ->  | DT147: =#REF! ->  | DU147: =#REF! ->  | DV147: Spínací modul - rozhraní | DW147: =#REF! ->  | DX147: =#REF! ->  | DY147: =#REF! ->  | DZ147: =#REF! -> 
DJ148: 0 | DK148: 0 | DL148: 0 | DM148: 0 | DN148: =#REF! ->  | DO148: =#REF! ->  | DP148: =#REF! ->  | DQ148: =#REF! ->  | DR148: =#REF! ->  | DS148: =#REF! ->  | DT148: =#REF! ->  | DU148: =#REF! ->  | DV148: Slučovač fází | DW148: =#REF! ->  | DX148: =#REF! ->  | DY148: =#REF! ->  | DZ148: =#REF! ->  | EE148: Software | EF148: 25300 | EG148: 1 | EH148: 25300
DV149: NÁKLADY
CQ150: =AI29 -> 59372.5 | CU150: =AM29 -> 39160 | CY150: =AQ29 -> 64295 | DC150: =AU29 -> 92097.5 | DG150: =AY29 -> 63195 | DK150: =BG29 -> 48675 | DO150: =#REF! ->  | DS150: =#REF! ->  | DV150: Cena celková (sečteny ceny za 1ks) | DW150: =#REF! ->  | DX150: =#REF! ->  | DY150: =#REF! ->  | DZ150: =#REF! ->  | EA150: =BN29 ->  | EB150: 89980 | EF150: 52525 | EJ150: 54010
CR151: =AJ30 -> 28 | CV151: =AN30 -> 22 | CZ151: =AR30 -> 19 | DD151: =AV30 -> 16 | DH151: =AZ30 -> 18 | DL151: =BH30 -> 27 | DP151: =#REF! ->  | DT151: =#REF! ->  | DV151: Počet zařízení v projektu | DW151: =#REF! ->  | DX151: =#REF! ->  | DY151: =#REF! ->  | DZ151: =#REF! ->  | EA151: =BN30 ->  | EB151: =BO30 ->  | EC151: =BP30 -> 25 | ED151: =BQ30 ->  | EE151: =BR30 ->  | EF151: =BS30 ->  | EG151: =BT30 -> 22 | EH151: =BU30 ->  | EI151: =BV30 ->  | EJ151: =BW30 ->  | EK151: =BX30 -> 19 | EL151: =BY30 -> 
CP152: =AH31 ->  | CQ152: =AI31 ->  | CR152: =AJ31 ->  | CS152: =AK31 -> 102767.5 | CT152: =AL31 ->  | CU152: =AM31 ->  | CV152: =AN31 ->  | CW152: =AO31 -> 73782.5 | CX152: =AP31 ->  | CY152: =AQ31 ->  | CZ152: =AR31 ->  | DA152: =AS31 -> 94352.5 | DB152: =AT31 ->  | DC152: =AU31 ->  | DD152: =AV31 ->  | DE152: =AW31 -> 98615 | DF152: =AX31 ->  | DG152: =AY31 ->  | DH152: =AZ31 ->  | DI152: =BA31 -> 85580 | DJ152: =BF31 ->  | DK152: =BG31 ->  | DL152: =BH31 ->  | DM152: =BI31 -> 90282.5 | DN152: =#REF! ->  | DO152: =#REF! ->  | DP152: =#REF! ->  | DQ152: =#REF! ->  | DR152: =#REF! ->  | DS152: =#REF! ->  | DT152: =#REF! ->  | DU152: =#REF! ->  | DV152: Celkové náklady na projekt | DW152: =#REF! ->  | DX152: =#REF! ->  | DY152: =#REF! ->  | DZ152: =#REF! ->  | ED152: 137720 | EG152: =BR31 -> Cena bez dotykového panelu | EH152: 75185 | EL152: 96442.5
DN156: TECO - Rfox
CP157: Zařízení | CQ157: cena / ks | CR157: ks | CS157: Cena | CT157: Zařízení | CU157: cena / ks | CV157: ks | CW157: Cena | CX157: Zařízení | CY157: cena / ks | CZ157: ks | DA157: Cena | DB157: Zařízení | DC157: cena / ks | DD157: ks | DE157: Cena | DF157: Zařízení | DG157: cena / ks | DH157: ks | DI157: Cena | DJ157: Zařízení | DK157: cena / ks | DL157: ks | DM157: Cena | DN157: Zařízení | DO157: cena / ks | DP157: ks | DQ157: Cena | DR157: Zařízení | DS157: cena / ks | DT157: ks | DU157: Cena
CP158: =#REF! ->  | CQ158: =#REF! ->  | CR158: =#REF! ->  | CS158: =#REF! ->  | CT158: =AX5 -> MTN626299 | CU158: 1760 | CV158: 4 | CW158: 7040 | CX158: H4652/2 | CY158: 1320 | CZ158: 4 | DA158: 5280 | DB158: L4652/2 | DC158: 1320 | DD158: 4 | DE158: 5280 | DF158: 5034NL | DG158: 2255 | DH158: 4 | DI158: 9020 | DJ158: =BR5 -> LCN-UP24 | DK158: 660 | DL158: 4 | DM158: 2640 | DN158: =BJ5 -> 5034NL | DO158: 2255 | DP158: 4 | DQ158: 9020 | DR158: =#REF! ->  | DS158: =#REF! ->  | DT158: =#REF! ->  | DU158: =#REF! -> 
CP159: =#REF! ->  | CQ159: =#REF! ->  | CR159: =#REF! ->  | CS159: =#REF! ->  | CT159: =AX7 ->  | DJ159: =BR7 ->  | DN159: =BJ7 ->  | DR159: =#REF! ->  | DS159: =#REF! ->  | DT159: =#REF! ->  | DU159: =#REF! -> 
CP160: =#REF! ->  | CQ160: =#REF! ->  | CR160: =#REF! ->  | CS160: =#REF! ->  | CT160: =AX11 -> MTN649315 | CU160: 8745 | CV160: 2 | CW160: 17490 | CX160: F415 | CY160: 3355 | CZ160: 8 | DA160: 26840 | DB160: 775637 | DC160: 3382.5 | DD160: 8 | DE160: 27060 | DF160: L5504D2U | DG160: 17682.5 | DH160: 2 | DI160: 35365 | DJ160: =BR11 -> LCN-SH | DK160: 5060 | DL160: 4 | DM160: 20240 | DN160: =BJ11 -> L5504D2U | DO160: 17682.5 | DP160: 2 | DQ160: 35365 | DR160: =#REF! ->  | DS160: =#REF! ->  | DT160: =#REF! ->  | DU160: =#REF! -> 
CP161: =#REF! ->  | CQ161: =#REF! ->  | CR161: =#REF! ->  | CS161: =#REF! ->  | DR161: =#REF! ->  | DS161: =#REF! ->  | DT161: =#REF! ->  | DU161: =#REF! -> 
CP162: =#REF! ->  | CQ162: =#REF! ->  | CR162: =#REF! ->  | CS162: =#REF! ->  | DR162: =#REF! ->  | DS162: =#REF! ->  | DT162: =#REF! ->  | DU162: =#REF! -> 
CP163: =#REF! ->  | CQ163: =#REF! ->  | CR163: =#REF! ->  | CS163: =#REF! ->  | DR163: =#REF! ->  | DS163: =#REF! ->  | DT163: =#REF! ->  | DU163: =#REF! -> 
CP164: =#REF! ->  | CQ164: =#REF! ->  | CR164: =#REF! ->  | CS164: =#REF! ->  | DR164: =#REF! ->  | DS164: =#REF! ->  | DT164: =#REF! ->  | DU164: =#REF! -> 
CP165: =#REF! ->  | CQ165: =#REF! ->  | CR165: =#REF! ->  | CS165: =#REF! ->  | CT165: =AX9 -> MTN649202 | CU165: 4070 | CV165: 1 | CW165: 4070 | CX165: F411/1N | CY165: 1237.5 | CZ165: 1 | DA165: 1237.5 | DB165: 775633 | DC165: 2392.5 | DD165: 1 | DE165: 2392.5 | DF165: L5504RVF | DG165: 8497.5 | DH165: 1 | DI165: 8497.5 | DJ165: =BR9 -> LCN-R1U | DK165: 797.5 | DL165: 1 | DM165: 797.5 | DN165: =BJ9 -> L5504RVF | DO165: 8497.5 | DP165: 1 | DQ165: 8497.5 | DR165: =#REF! ->  | DS165: =#REF! ->  | DT165: =#REF! ->  | DU165: =#REF! -> 
CP166: =#REF! ->  | CQ166: =#REF! ->  | CR166: =#REF! ->  | CS166: =#REF! ->  | DR166: =#REF! ->  | DS166: =#REF! ->  | DT166: =#REF! ->  | DU166: =#REF! -> 
CP167: =#REF! ->  | CQ167: =#REF! ->  | CR167: =#REF! ->  | CS167: =#REF! ->  | CT167: =AX16 -> MTN639125 | CU167: 605 | CV167: 3 | CW167: 1815 | CX167: termohlavice | CY167: 715 | CZ167: 3 | DA167: 2145 | DB167: termohlavice | DC167: 715 | DD167: 3 | DE167: 2145 | DF167: termohlavice | DG167: 715 | DH167: 3 | DI167: 2145 | DJ167: =BR16 -> LCN-AVN | DK167: 852.5 | DL167: 3 | DM167: 2557.5 | DN167: =BJ16 -> termohlavice | DO167: 715 | DP167: 3 | DQ167: 2145 | DR167: =#REF! ->  | DS167: =#REF! ->  | DT167: =#REF! ->  | DU167: =#REF! -> 
CP168: =#REF! ->  | CQ168: =#REF! ->  | CR168: =#REF! ->  | CS168: =#REF! ->  | CT168: MTN649202 | CU168: 4070 | CV168: 2 | CW168: 8140 | CX168: F411/1N | CY168: 1237.5 | CZ168: 3 | DA168: 3712.5 | DB168: 775633 | DC168: 2392.5 | DD168: 3 | DE168: 7177.5 | DF168: L5504AMP | DG168: 9350 | DH168: 1 | DI168: 9350 | DJ168: LCN-AO1R | DK168: 1237.5 | DL168: 3 | DM168: 3712.5 | DN168: L5504AMP | DO168: 9350 | DP168: 1 | DQ168: 9350 | DR168: =#REF! ->  | DS168: =#REF! ->  | DT168: =#REF! ->  | DU168: =#REF! -> 
CP169: =#REF! ->  | CQ169: =#REF! ->  | CR169: =#REF! ->  | CS169: =#REF! ->  | DR169: =#REF! ->  | DS169: =#REF! ->  | DT169: =#REF! ->  | DU169: =#REF! -> 
CP170: =#REF! ->  | CQ170: =#REF! ->  | CR170: =#REF! ->  | CS170: =#REF! ->  | CT170: MTN6260‑1007 | CU170: 33412.5 | CV170: 1 | CW170: 33412.5 | CX170: L4684SDK | CY170: 36107.5 | CZ170: 1 | DA170: 36107.5 | DB170: 7756 19 | DC170: 31707.5 | DD170: 1 | DE170: 31707.5 | DF170: 5080CTC3-PW | DG170: 56210 | DH170: 1 | DI170: 56210 | DJ170: LCN-GT10DW | DK170: 11660 | DL170: 1 | DM170: 11660 | DN170: 5080CTC3-PW | DO170: 56210 | DP170: 1 | DQ170: 56210 | DR170: =#REF! ->  | DS170: =#REF! ->  | DT170: =#REF! ->  | DU170: =#REF! -> 
CP171: =#REF! ->  | CQ171: =#REF! ->  | CR171: =#REF! ->  | CS171: =#REF! ->  | DR171: =#REF! ->  | DS171: =#REF! ->  | DT171: =#REF! ->  | DU171: =#REF! -> 
CP172: =#REF! ->  | CQ172: =#REF! ->  | CR172: =#REF! ->  | CS172: =#REF! ->  | CT172: =AX8 -> MTN649704 | CU172: 4867.5 | CV172: 1 | CW172: 4867.5 | CX172: F411/2 | CY172: 2035 | CZ172: 3 | DA172: 6105 | DB172: 775623 | DC172: 2557.5 | DD172: 3 | DE172: 7672.5 | DF172: L5501RBCP | DG172: 2667.5 | DH172: 3 | DI172: 8002.5 | DJ172: =BR8 -> LCN-R4M2H | DK172: 4922.5 | DL172: 1 | DM172: 4922.5 | DN172: =BJ8 -> L5501RBCP | DO172: 2667.5 | DP172: 3 | DQ172: 8002.5 | DR172: =#REF! ->  | DS172: =#REF! ->  | DT172: =#REF! ->  | DU172: =#REF! -> 
CP173: =#REF! ->  | CQ173: =#REF! ->  | CR173: =#REF! ->  | CS173: =#REF! ->  | CT173: =AX6 -> MTN626199 | CU173: 1540 | CV173: 3 | CW173: 4620 | CX173: H4652/2 | CY173: 1320 | CZ173: 3 | DA173: 3960 | DB173: L4652/2 | DC173: 1320 | DD173: 3 | DE173: 3960 | DF173: 5032NL | DG173: 1980 | DH173: 3 | DI173: 5940 | DJ173: =BR6 -> LCN-UP24 | DK173: 660 | DL173: 3 | DM173: 1980 | DN173: =BJ6 -> 5032NL | DO173: 1980 | DP173: 3 | DQ173: 5940 | DR173: =#REF! ->  | DS173: =#REF! ->  | DT173: =#REF! ->  | DU173: =#REF! -> 
CP174: =#REF! ->  | CQ174: =#REF! ->  | CR174: =#REF! ->  | CS174: =#REF! ->  | CT174: =AX21 ->  | DJ174: =BR21 ->  | DN174: =BJ21 ->  | DR174: =#REF! ->  | DS174: =#REF! ->  | DT174: =#REF! ->  | DU174: =#REF! -> 
CP175: =#REF! ->  | CQ175: =#REF! ->  | CR175: =#REF! ->  | CS175: =#REF! ->  | DR175: =#REF! ->  | DS175: =#REF! ->  | DT175: =#REF! ->  | DU175: =#REF! -> 
CP176: =#REF! ->  | CQ176: =#REF! ->  | CR176: =#REF! ->  | CS176: =#REF! ->  | DF176: 5500PACA | DG176: 13722.5 | DH176: 1 | DI176: 13722.5 | DJ176: N/A | DK176: N/A | DM176: 0 | DN176: 5500PACA | DO176: 13722.5 | DP176: 1 | DQ176: 13722.5 | DR176: =#REF! ->  | DS176: =#REF! ->  | DT176: =#REF! ->  | DU176: =#REF! -> 
CP177: =#REF! ->  | CQ177: =#REF! ->  | CR177: =#REF! ->  | CS177: =#REF! ->  | CT177: =#REF! ->  | CU177: =#REF! ->  | CV177: =#REF! ->  | CW177: =#REF! ->  | CX177: =#REF! ->  | CY177: =#REF! ->  | CZ177: =#REF! ->  | DA177: =#REF! ->  | DB177: =#REF! ->  | DC177: =#REF! ->  | DD177: =#REF! ->  | DE177: =#REF! ->  | DF177: =#REF! ->  | DG177: =#REF! ->  | DH177: =#REF! ->  | DI177: =#REF! ->  | DJ177: =#REF! ->  | DK177: =#REF! ->  | DL177: =#REF! ->  | DM177: =#REF! ->  | DN177: =#REF! ->  | DO177: =#REF! ->  | DP177: =#REF! ->  | DQ177: =#REF! ->  | DR177: =#REF! ->  | DS177: =#REF! ->  | DT177: =#REF! ->  | DU177: =#REF! -> 
CP178: =#REF! ->  | CQ178: =#REF! ->  | CR178: =#REF! ->  | CS178: =#REF! ->  | CT178: =AX24 -> MTN693004 | CU178: 4125 | CV178: 1 | CW178: 4125 | CX178: E46ADCN | CY178: 1897.5 | CZ178: 1 | DA178: 1897.5 | DB178: E46ADCN | DC178: 2887.5 | DD178: 1 | DE178: 2887.5 | DF178: 5500PS | DG178: 6022.5 | DH178: 1 | DI178: 6022.5 | DJ178: =BR24 -> LCN-NH24 | DK178: 1375 | DL178: 1 | DM178: 1375 | DN178: =BJ24 -> 5500PS | DO178: 6022.5 | DP178: 1 | DQ178: 6022.5 | DR178: =#REF! ->  | DS178: =#REF! ->  | DT178: =#REF! ->  | DU178: =#REF! -> 
CP179: =#REF! ->  | CQ179: =#REF! ->  | CR179: =#REF! ->  | CS179: =#REF! ->  | DR179: =#REF! ->  | DS179: =#REF! ->  | DT179: =#REF! ->  | DU179: =#REF! -> 
CP180: =#REF! ->  | CQ180: =#REF! ->  | CR180: =#REF! ->  | CS180: =#REF! ->  | DR180: =#REF! ->  | DS180: =#REF! ->  | DT180: =#REF! ->  | DU180: =#REF! -> 
CP181: =#REF! ->  | CQ181: =#REF! ->  | CR181: =#REF! ->  | CS181: =#REF! ->  | DB181: 0 | DC181: 0 | DD181: 0 | DE181: 0 | DJ181: Software | DK181: 25300 | DL181: 1 | DM181: 25300 | DR181: =#REF! ->  | DS181: =#REF! ->  | DT181: =#REF! ->  | DU181: =#REF! -> 
CP183: =#REF! ->  | CQ183: =#REF! ->  | CR183: =#REF! ->  | CS183: =#REF! ->  | CT183: =AX29 ->  | CU183: 63195 | CY183: 49225 | DC183: 48675 | DG183: 119102.5 | DJ183: =BR29 ->  | DK183: 52525 | DN183: =BJ29 ->  | DO183: 119102.5 | DR183: =#REF! ->  | DS183: =#REF! ->  | DT183: =#REF! ->  | DU183: =#REF! -> 
CP184: =#REF! ->  | CQ184: =#REF! ->  | CR184: =#REF! ->  | CS184: =#REF! ->  | CV184: 18 | CZ184: 27 | DD184: 27 | DH184: 20 | DL184: 22 | DP184: 20 | DR184: =#REF! ->  | DS184: =#REF! ->  | DT184: =#REF! ->  | DU184: =#REF! -> 
CP185: =#REF! ->  | CQ185: =#REF! ->  | CR185: =#REF! ->  | CS185: =#REF! ->  | CT185: =AX31 ->  | CW185: 85580 | DA185: 87285 | DE185: 90282.5 | DF185: 0 | DG185: 0 | DH185: 0 | DI185: 154275 | DJ185: Cena bez dotykového panelu | DK185: 0 | DL185: 0 | DM185: 75185 | DP185: =BL31 -> 0 | DQ185: =BM31 -> 154275 | DR185: =#REF! ->  | DS185: =#REF! ->  | DT185: =#REF! ->  | DU185: =#REF! -> 
CK188: Popis vzorového projektu: Uvažují se vždy 3 pokoje - obývák s kuchyní, dětský pokoj a ložnice. V každé místnosti se ovládá: 2x světla, 1x topení, 1x žaluzie. Jsou kalkulovány pouze ty prvky, které se u dané funkce mění. Ty, které zůstávají funkčně stejné (bez ohledu na design a provedení) se nekalkulují. Nejsou kalkulovány zařízení a spotřebiče: světla, lampy, radiátory, podlahovka, žaluzie. Ty ale v rámci porovnání zůstávají shodné. Nejsou kalkulovány kabely a instalační materiál. Cena ale v rámci uvedených instalací bude podobná a nebude se lišit o více než 10%. Vypínače a ovladače jsou kalkulovány v základních designech (většinou plastové rámečky). Ceny jsou uvedeny v Kč bez DPH. | DV188: Popis vzorového projektu: Uvažují se vždy 3 pokoje - obývák s kuchyní, dětský pokoj a ložnice. V každé místnosti se ovládá: 2x světla, 1x topení, 1x žaluzie. Jsou kalkulovány pouze ty prvky, které se u dané funkce mění. Ty, které zůstávají funkčně stejné (bez ohledu na design a provedení) se nekalkulují. Nejsou kalkulovány zařízení a spotřebiče: světla, lampy, radiátory, podlahovka, žaluzie. Ty ale v rámci porovnání zůstávají shodné. Nejsou kalkulovány kabely a instalační materiál. Cena ale v rámci uvedených instalací bude podobná a nebude se lišit o více než 10%. Vypínače a ovladače jsou kalkulovány v základních designech (většinou plastové rámečky). Ceny jsou uvedeny v Kč bez DPH.
DV190: Poznámka: Vybírány byly přednostně jednotky určené pro montáž do rozváděče s nejnižší cenou. V případě, že jednotku se nepodařilo zjistit nebo se nevyrábí, je daná položka nahrazena zkratkou N/A a cena je nastavena na 0.

Sheet POROVNÁNÍ iNELS vs KNX
B5: Struktura systému
C6: Centralizovaný systém | E6: Decentralizovaný systém
C7: Centrální jednotka – vše na jednom místě (uživatelský projekt, logy, webserver, ethernetový port pro komunikaci) | E7: Jednotky mohou pracovat autonomně
E8: Pro komunikaci vyžadována KNX/IP gateway
E9: V průměru 2x dražší
B10: Sběrnice a kabeláž
C11: Kroucený stíněný pár 2x2x0.8mm | E11: Kroucený stíněný pár 2x2x0.8mm
C12: Počet vodičů sběrnice: 2 | E12: Počet vodičů sběrnice: 2
C13: Napětí na sběrnici 27 V DC | E13: Napětí na sběrnici 29 V DC
C14: Volná topologie (linie, strom, hvězda) | E14: Volná topologie (linie, strom, hvězda)
C15: Rychlost přenosu dat: 112500 bit/s | E15: Rychlost přenosu dat: 9600 bit/s
C16: Maximální délka sběrnice: 550m | E16: Maximální délka sběrnice: 350m
C17: Maximální počet jednotek na sběrnici: 32 | E17: Maximální počet jednotek na sběrnici: 64
C18: Maximální počet jednotek pod jednou centrální jednotkou: 576 | E18: Maximální počet jednotek: 58 tis.
C19: Využitím API k centrální jednotce (ASCII komunikace) lze v rámci BMS komunikovat s více systémy (desítky)
B20: Parametrizace
C21: iNELS3 Designer & Manager (iDM3) | E21: Engineering Tool Software (ETS5)
C22: Jednodušší | E22: Složitější
C23: Freeware | E23: ETS5 Proffesional – 1000 dolarů
E24: ETS Supplementary – 150 dolarů (k Proffesional verzi lze dokopit pouze jedna tato licence)
C25: Adresace: přiřazeno z výroby | E25: Adresace: nutné přiřazovat skupinové adresy
B26: Školení
C27: 3 dny včetně multimédií a integrace třetích stran | E27: 5 dnů bez multimédií
B28: Multimediální nástavba
C29: Vlastní integrované řešení (iMM)
C30: LARA Intercom
C31: Možnost spojení s Crestron, Control4, AMX, CUE | E31: Nástavby třetích stran
